Workbook

Sheet Forside

Sheet Vejledning
B3: Dobbeltklik på billedet heruder for at åbne vejledningen:

Sheet Info
A2: Bygnings- og kontaktoplysninger
A4: Adresse:
A5: Post nr. :
A6: By:
A7: Kontakt person:
A8: Tlf. nr.:
A10: Opførelsesår:
A11: Areal (etageareal): | B11: 2000
A12: Opvarmningsform: | B12: Fjernvarme
A15: Priser på energikilde
A17: Energikilde | B17: Pris pr. kWh
A18: El | B18: 1.6
A19: =IF(B12="Vælg","Vælg opvarmningsform",B12) -> Fjernvarme | B19: 0.45

Sheet Resultatoversigt
B1: Klimaskærm | E1: Vinduer | H1: Ventilatorskift + Remtræk | K1: Luftmængde + Veksler | O1: Belysning | S1: Solceller | Y1: Køling
S3: Årlig energiforbrug [kWh] | T3: 225000
S4: Retning | T4: Syd Vest
S5: - retning i forhold til syd (0°) | T5: 45
S6: Hældning | T6: 30
S7: Dækningsgrad af solceller [%] | T7: 0.3
S8: Areal af solcelleanlæg | T8: 299.8764749
S9: Energikilde | T9: El
S10: Pris pr. kWh | T10: 1.6
S11: Økonomisk besparelse | T11: 108000
S12: Investering (anslået) | T12: 899629.4246
S13: Investering
S14: Tilbagebetalingstid | T14: 8.32990208

Sheet Klimaskærm
A1: Årgang | B1: 1960-1980 | N1: Opslagsliste efterisolering
A2: Byggeri | B2: =IFERROR(VLOOKUP(B1,A37:B112,2,FALSE),"") -> Industrialiseret byggeri | N2: 1 | O2: =IFERROR(INDEX($F$15:$N$15,MATCH($N2,$F$11:$N$11,0)),"") -> 
A3: Type | B3: Loft | N3: 2
A4: Konstruktion | B4: 8" bjælkelag med 50 mm indskudsler på indskudsbrædder | N4: 3
A5: Areal | B5: 3168 | N5: 4
A6: Efterisolering | B6: 150 mm | N6: 5
A7: Energibesparelse | B7: =IFERROR((HLOOKUP(B6,$F$15:$N$27,MATCH(B4,E16:E27,0)+1,FALSE))*B5,"") ->  | N7: 6
A8: Energikilde | B8: =Info!$B$12 -> Fjernvarme | N8: 7
A9: Pris pr. kWh | B9: =IFERROR(VLOOKUP(B8,Info!$A$18:$B$22,2,FALSE),"") -> 0.45 | N9: 8
A10: Økonomisk besparelse | B10: =IFERROR(B7*B9,"") ->  | N10: 9
A11: Investering (anslået) | B11: =IFERROR(IF(B12>0,"",((HLOOKUP(B6,$Q$15:$Y$27,MATCH(B4,E16:E27,0)+1,FALSE))*B5)),"") ->  | F11: =IF(F13="","",MAX(E$11:$E11)+1) ->  | G11: =IF(G13="","",MAX($E$11:F11)+1) ->  | H11: =IF(H13="","",MAX($E$11:G11)+1) ->  | I11: =IF(I13="","",MAX($E$11:H11)+1) ->  | J11: =IF(J13="","",MAX($E$11:I11)+1) ->  | K11: =IF(K13="","",MAX($E$11:J11)+1) ->  | L11: =IF(L13="","",MAX($E$11:K11)+1) ->  | M11: =IF(M13="","",MAX($E$11:L11)+1) ->  | N11: =IF(N13="","",MAX($E$11:M11)+1) -> 
A12: Investering | G12: Efterisolering | Q12: Investering [kr./m²]
A13: Tilbagebetalingstid | B13: =IFERROR(IF(B12>0,B12/B10,B11/B10),"") ->  | F13: =IF(SUMIFS(F16:F25,Konstruktion,$B$4)>0,F15,"") ->  | Q13: =IF(SUMIFS(Q16:Q25,Konstruktion,$B$4)>0,Q15,"") -> 
A14: Årgang | B14: Byggeri | C14: Type | E14: Konstruktion | F14: =IFERROR(IF(OR(F16:F25)>0,F15,""),"") ->  | G14: =IFERROR(IF(OR(G16:G25)>0,G15,""),"") ->  | Q14: =IFERROR(IF(OR(Q16:Q25)>0,Q15,""),"") ->  | R14: =IFERROR(IF(OR(R16:R25)>0,R15,""),"") -> 
F15: 70 mm | G15: 75 mm | H15: 100 mm | I15: 125 mm | J15: 130 mm | K15: 150 mm | L15: 200 mm | M15: 225 mm | N15: 300 mm | Q15: 70 mm | R15: 75 mm | S15: 100 mm | T15: 125 mm | U15: 130 mm | V15: 150 mm | W15: 200 mm | X15: 225 mm | Y15: 300 mm
A16: =IF(E16="","",(VLOOKUP($B$1,$A$38:$N$113,1,FALSE))) ->  | B16: =IF(E16="","",(VLOOKUP($B$2,$B$38:$N$113,1,FALSE))) ->  | C16: =IF(E16="","",((VLOOKUP($B$3,$C$38:$N$113,1,FALSE)))) ->  | D16: 1 | E16: =IFERROR(VLOOKUP(D16,$D$38:$E$113,2,FALSE),"") ->  | F16: =IFERROR(IF((VLOOKUP($D16,$D$38:$N$113,MATCH(F$15,Efterisolering,0)+2,FALSE))=0,"",(VLOOKUP($D16,$D$38:$N$113,MATCH(F$15,Efterisolering,0)+2,FALSE))),"") ->  | Q16: =IFERROR(IF((VLOOKUP($D16,$D$38:$Y$113,MATCH(Q$15,Efterisolering,0)+13,FALSE))=0,"",(VLOOKUP($D16,$D$38:$Y$113,MATCH(Q$15,Efterisolering,0)+13,FALSE))),"") -> 
D17: 2
D18: 3
D19: 4
D20: 5
D21: 6
D22: 7
D23: 8
D24: 9
D25: 10
D26: 11
D27: 12
G36: Tykkelse på tilføjet efterisolering i skråvægge Energibesparelse i kWh/m² pr. år. | Q36: Investering [kr./m²]
A37: Årgang | B37: Byggeri | C37: Konstruktion | E37: Eksisterende forhold og isoleringstykkelse | F37: 70 mm | G37: 75 mm | H37: 100 mm | I37: 125 mm | J37: 130 mm | K37: 150 mm | L37: 200 mm | M37: 225 mm | N37: 300 mm | Q37: 70 mm | R37: 75 mm | S37: 100 mm | T37: 125 mm | U37: 130 mm | V37: 150 mm | W37: 200 mm | X37: 225 mm | Y37: 300 mm
A38: 1850-1920 | B38: Ældre muret byggeri | C38: Skråvægge | D38: =COUNTIFS(A38,$B$1,B38,$B$2,C38,$B$3)+IF(AND(C38=$B$3,A38=$B$1),D37,0) -> 0 | E38: Spærhøjde 200 mm, brædder, strå og puds | K38: 160 | V38: 350
A39: 1850-1920 | B39: Ældre muret byggeri | C39: Skråvægge | D39: 0 | E39: Spærhøjde 175 mm, brædder, strå og puds | I39: 156 | T39: 315
A40: 1850-1920 | B40: Ældre muret byggeri | C40: Skråvægge | D40: 0 | E40: Spærhøjde 150 mm, brædder, strå og puds | H40: 150 | S40: 280
A41: 1850-1920 | B41: Ældre muret byggeri | C41: Skråvægge | D41: 0 | E41: Spærhøjde 125 mm, brædder, strå og puds | G41: 142 | R41: 250
A42: 1850-1920 | B42: Ældre muret byggeri | C42: Skråvægge | D42: =COUNTIFS(A42,$B$1,B42,$B$2,C42,$B$3)+IF(AND(C42=$B$3,A42=$B$1),D41,0) -> 0 | E42: Efterisolering i forbindelse med ombygning | G42: =($O$42-0.44)*8027*10.1/1000 -> 142.687952 | H42: =($O$42-0.35)*8027*10.1/1000 -> 149.984495 | I42: =($O$42-0.29)*8027*10.1/1000 -> 154.848857 | K42: =($O$42-0.25)*8027*10.1/1000 -> 158.091765 | L42: =($O$42-0.18)*8027*10.1/1000 -> 163.766854 | M42: =($O$42-0.16)*8027*10.1/1000 -> 165.388308 | N42: =($O$42-0.12)*8027*10.1/1000 -> 168.631216 | O42: 2.2 | R42: 150 | S42: 180 | T42: 215 | V42: 250 | W42: 320 | X42: 350 | Y42: 400
A43: 1850-1920 | B43: Ældre muret byggeri | C43: Loft | D43: =COUNTIFS(A43,$B$1,B43,$B$2,C43,$B$3)+IF(AND(C43=$B$3,A43=$B$1),D41,0) -> 0 | E43: 10" bjælkelag med 50 mm indskudsler på indskudsbrædder | K43: 93 | V43: 250
A44: 1850-1920 | B44: Ældre muret byggeri | C44: Loft | D44: 0 | E44: 9" bjælkelag med 50 mm indskudsler på indskudsbrædder | I44: 87 | T44: 215
A45: 1850-1920 | B45: Ældre muret byggeri | C45: Loft | D45: 0 | E45: 8" bjælkelag med 50 mm indskudsler på indskudsbrædder | H45: 80 | S45: 180
A46: 1850-1920 | B46: Ældre muret byggeri | C46: Loft | D46: 0 | E46: 7" bjælkelag med 50 mm indskudsler på indskudsbrædder | G46: 72 | R46: 150
A47: 1850-1920 | B47: Ældre muret byggeri | C47: Loft | D47: =COUNTIFS(A47,$B$1,B47,$B$2,C47,$B$3)+IF(AND(C47=$B$3,A47=$B$1),D46,0) -> 0 | E47: Efterisolering i forbindelse med ombygning [HB2016 værdier + TRY] | G47: =($O$47-0.44)*8027*10.1/1000 -> 83.504881 | H47: =($O$47-0.35)*8027*10.1/1000 -> 90.801424 | I47: =($O$47-0.29)*8027*10.1/1000 -> 95.665786 | K47: =($O$47-0.25)*8027*10.1/1000 -> 98.908694 | L47: =($O$47-0.18)*8027*10.1/1000 -> 104.583783 | M47: =($O$47-0.16)*8027*10.1/1000 -> 106.205237 | N47: =($O$47-0.12)*8027*10.1/1000 -> 109.448145 | O47: 1.47 | R47: 150 | S47: 180 | T47: 215 | V47: 250 | W47: 320 | X47: 350 | Y47: 400
A48: 1850-1920 | B48: Ældre muret byggeri | C48: Indvendig efterisolering (tung ydervæg) | D48: =COUNTIFS(A48,$B$1,B48,$B$2,C48,$B$3)+IF(AND(C48=$B$3,A48=$B$1),D46,0) -> 0 | E48: 3 stens væg uden isolering | G48: 33 | K48: 42 | R48: 1500 | V48: 1700 | AC48: Indvendig efterisolering med 200 mm isolering på massive ydervægge. Arbejdet udføres iht. gældende regler på området, hvad angår materialekrav samt placering og udførelse af dampspærre. I forbindelse med arbejdet, skal der udføres nye lysninger og bundstykker ved vinduer, og tekniske installationer føres med ud i ny væg.
A49: 1850-1920 | B49: Ældre muret byggeri | C49: Indvendig efterisolering (tung ydervæg) | D49: 0 | E49: 3 stens væg med 50 mm isolering | K49: 19 | V49: 1700
A50: 1850-1920 | B50: Ældre muret byggeri | C50: Indvendig efterisolering (tung ydervæg) | D50: 0 | E50: 2½ stens væg uden isolering | G50: 41 | K50: 51 | R50: 1500 | V50: 1700
A51: 1850-1920 | B51: Ældre muret byggeri | C51: Indvendig efterisolering (tung ydervæg) | D51: 0 | E51: 2½ stens væg med 50 mm isolering | K51: 21 | V51: 1700
A52: 1850-1920 | B52: Ældre muret byggeri | C52: Indvendig efterisolering (tung ydervæg) | D52: 0 | E52: 2 stens væg uden isolering | G52: 53 | K52: 65 | R52: 1500 | V52: 1700
A53: 1850-1920 | B53: Ældre muret byggeri | C53: Indvendig efterisolering (tung ydervæg) | D53: 0 | E53: 2 stens væg med 50 mm isolering | K53: 24 | V53: 1700
A54: 1850-1920 | B54: Ældre muret byggeri | C54: Indvendig efterisolering (tung ydervæg) | D54: 0 | E54: 1½ stens væg uden isolering | G54: 71 | K54: 83 | R54: 1500 | V54: 1700
A55: 1850-1920 | B55: Ældre muret byggeri | C55: Indvendig efterisolering (tung ydervæg) | D55: 0 | E55: 1½ stens væg med 50 mm isolering | K55: 28 | V55: 1700
A56: 1920-1960 | B56: Nyere muret byggeri | C56: Indvendig efterisolering (tung ydervæg) | D56: 0 | E56: 1½ stens massiv væg | G56: 71 | K56: 83 | R56: 1500 | V56: 1700
A57: 1920-1960 | B57: Nyere muret byggeri | C57: Indvendig efterisolering (tung ydervæg) | D57: 0 | E57: 1½ stens massiv væg med 50 mm isolering | K57: 28 | V57: 1700
A58: 1920-1960 | B58: Nyere muret byggeri | C58: Indvendig efterisolering (tung ydervæg) | D58: 0 | E58: 1½ stens massiv væg med bagmur i lecasten | G58: 57 | K58: 66 | R58: 1500 | V58: 1700
A59: 1920-1960 | B59: Nyere muret byggeri | C59: Indvendig efterisolering (tung ydervæg) | D59: 0 | E59: 1½ stens massiv væg med 50 mm isolering | K59: 28 | V59: 1700
A60: 1920-1960 | B60: Nyere muret byggeri | C60: Indvendig efterisolering (tung ydervæg) | D60: 0 | E60: 1½ stens væg med faste bindere på. 600 mm uden isolering | G60: 100 | K60: 115 | R60: 1500 | V60: 1700
A61: 1920-1960 | B61: Nyere muret byggeri | C61: Indvendig efterisolering (tung ydervæg) | D61: 0 | E61: 1½ stens væg med faste bindere pr. 600 mm med hulmursisolering (130 mm) | G61: 27 | K61: 37 | R61: 1500 | V61: 1700
A62: 1920-1960 | B62: Nyere muret byggeri | C62: Indvendig efterisolering (tung ydervæg) | D62: 0 | E62: 1¼ stens massiv væg | G62: 83 | K62: 95 | R62: 1500 | V62: 1700
A63: 1920-1960 | B63: Nyere muret byggeri | C63: Indvendig efterisolering (tung ydervæg) | D63: 0 | E63: 1¼ stens massiv væg med 50 mm isolering | K63: 30 | V63: 1700
A64: 1920-1960 | B64: Nyere muret byggeri | C64: Indvendig efterisolering (tung ydervæg) | D64: 0 | E64: 1¼ stens væg med faste bindinger pr. 600 mm uden isolering | G64: 100 | K64: 115 | R64: 1500 | V64: 1700
A65: 1920-1960 | B65: Nyere muret byggeri | C65: Indvendig efterisolering (tung ydervæg) | D65: 0 | E65: 1¼ stens væg med faste bindinger pr. 600 mm med 70 mm isolering | G65: 53 | K65: 66 | R65: 1500 | V65: 1700
A66: 1920-1960 | B66: Nyere muret byggeri | C66: Indvendig efterisolering (tung ydervæg) | D66: 0 | E66: 1 stens væg massiv væg | G66: 100 | K66: 115 | R66: 1500 | V66: 1700
A67: 1920-1960 | B67: Nyere muret byggeri | C67: Indvendig efterisolering (tung ydervæg) | D67: 0 | E67: 1 stens massiv væg med 50 mm isolering | K67: 33 | V67: 1700
A68: 1850-1920 | B68: Ældre muret byggeri | C68: Indvendig (Brystninger) | D68: 0 | E68: 1 stens væg uden isolering | G68: 100 | K68: 115 | R68: 1500 | V68: 1700
A69: 1850-1920 | B69: Ældre muret byggeri | C69: Indvendig (Brystninger) | D69: 0 | E69: 1 stens væg med 50 mm isolering | K69: 33 | V69: 1700
A70: 1850-1920 | B70: Ældre muret byggeri | C70: Indvendig (Brystninger) | D70: 0 | E70: ½ stens væg uden isolering | G70: 158 | K70: 175 | R70: 1500 | V70: 1700
A71: 1850-1920 | B71: Ældre muret byggeri | C71: Indvendig (Brystninger) | D71: 0 | E71: ½ stens væg med 50 mm isolering | K71: 39 | V71: 1700
A72: 1920-1960 | B72: Nyere muret byggeri | C72: Indvendig (Brystninger) | D72: 0 | E72: 1 stens væg uden isolering | G72: 100 | K72: 115 | R72: 1500 | V72: 1700
A73: 1920-1960 | B73: Nyere muret byggeri | C73: Indvendig (Brystninger) | D73: 0 | E73: 1 stens væg med 50 mm isolering | K73: 33 | V73: 1700
A74: 1920-1960 | B74: Nyere muret byggeri | C74: Indvendig (Brystninger) | D74: 0 | E74: ½ stens væg ude isolering | G74: 158 | K74: 175 | R74: 1500 | V74: 1700 | AC74: Udvendig efterisolering med 200 mm isolering på massive ydervægge. Den udvendige efterisolering afsluttes med en facadepudsløsning eller en hertil godkendt pladebeklædning. Vinduerne skal muligvis flyttes med ud i facaderne eller alternativt udskiftes helt i forbindelse hermed. En udvendig isoleringsløsning sikrer optimal kuldebroafbrydelse. Facadernes udseende ændres dog markant, og det skal forinden arbejdet igangsættes undersøges, om lokale bestemmelser evt. hindrer en sådan ændring i bygningens udseende.
A75: 1920-1960 | B75: Nyere muret byggeri | C75: Indvendig (Brystninger) | D75: 0 | E75: ½ stens væg med 50 mm isolering | K75: 39 | V75: 1700
A76: 1960-1980 | B76: Industrialiseret byggeri | C76: Indvendig (Brystninger) | D76: 0 | E76: 50 mm | I76: 47 | M76: 54 | T76: 1850 | X76: 2050
A77: 1960-1980 | B77: Industrialiseret byggeri | C77: Indvendig (Brystninger) | D77: 0 | E77: 70 mm | I77: 32 | M77: 38 | T77: 1850 | X77: 2050
A78: 1960-1980 | B78: Industrialiseret byggeri | C78: Indvendig (Brystninger) | D78: 0 | E78: 100 mm | I78: 21 | M78: 26 | T78: 1850 | X78: 2050
A79: 1920-1960 | B79: Nyere muret byggeri | C79: Hulmur | D79: 0 | E79: 1½ stens væg med faste bindere pr. 600mm med hulmursisolering (130 mm) | J79: 79 | U79: 250
A80: 1920-1960 | B80: Nyere muret byggeri | C80: Hulmur | D80: 0 | E80: 1½ stens væg med faste bindere pr. 600mm med hulmursisolering (130 mm) med 50 cm isolering (indv.) | J80: 16 | U80: 250
A81: 1920-1960 | B81: Nyere muret byggeri | C81: Hulmur | D81: 0 | E81: 1¼ stens væg med faste bindinger pr.600 mm uden isolering | F81: 61 | Q81: 200
A82: 1920-1960 | B82: Nyere muret byggeri | C82: Hulmur | D82: 0 | E82: 1¼ stens væg med faste bindinger pr.600 mm med 50 mm isolering (indv) | F82: 12 | Q82: 200
A83: 1850-1920 | B83: Ældre muret byggeri | C83: Udvendig (Tung ydervæg) | D83: 0 | E83: 2 stens væg uden isolering | I83: 61 | M83: 68 | T83: 1850 | X83: 2050 | AC83: Indvendig efterisolering af hulrumsisolerede ydervægge af tegl med 100 mm isolering i ny forsatsvæg. Arbejdet udføres iht. gældende regler på området, hvad angår materialekrav samt placering og udførelse af dampspærre. I forbindelse med arbejdet, skal der udføres nye lysninger og bundstykker ved vinduer, og tekniske installationer føres med ud i ny væg. Det bør i øvrigt undersøges om isoleringsarbejdet kan medføre dannelse af skimmelsvampe bag isoleringen.
A84: 1850-1920 | B84: Ældre muret byggeri | C84: Udvendig (Tung ydervæg) | D84: 0 | E84: 2 stens væg med 50 mm isolering | I84: 27 | M84: 33 | T84: 1850 | X84: 2050
A85: 1850-1920 | B85: Ældre muret byggeri | C85: Udvendig (Tung ydervæg) | D85: 0 | E85: 1½ stens væg uden isolering | I85: 79 | M85: 87 | T85: 1850 | X85: 2050
A86: 1850-1920 | B86: Ældre muret byggeri | C86: Udvendig (Tung ydervæg) | D86: 0 | E86: 1½ stens væg med 50 mm isolering | I86: 31 | M86: 38 | T86: 1850 | X86: 2050
A87: 1850-1920 | B87: Ældre muret byggeri | C87: Udvendig (Tung ydervæg) | D87: 0 | E87: 1 stens væg uden isolering | I87: 110 | M87: 118 | T87: 1850 | X87: 2050
A88: 1850-1920 | B88: Ældre muret byggeri | C88: Udvendig (Tung ydervæg) | D88: 0 | E88: 1 stens væg med 50 mm isolering | I88: 36 | M88: 44 | T88: 1850 | X88: 2050
A89: 1920-1960 | B89: Nyere muret byggeri | C89: Udvendig (Tung ydervæg) | D89: 0 | E89: 1½ stens massiv væg | I89: 79 | M89: 88 | T89: 1850 | X89: 2050
A90: 1920-1960 | B90: Nyere muret byggeri | C90: Udvendig (Tung ydervæg) | D90: 0 | E90: 1½ stens massiv væg med 50 mm isolering | I90: 31 | M90: 37 | T90: 1850 | X90: 2050
A91: 1920-1960 | B91: Nyere muret byggeri | C91: Udvendig (Tung ydervæg) | D91: 0 | E91: 1½ stens massiv væg med bagmur i lecasten | I91: 63 | M91: 72 | T91: 1850 | X91: 2050
A92: 1920-1960 | B92: Nyere muret byggeri | C92: Udvendig (Tung ydervæg) | D92: 0 | E92: 1½ stens massiv væg med 50 mm isolering | I92: 31 | M92: 37 | T92: 1850 | X92: 2050
A93: 1920-1960 | B93: Nyere muret byggeri | C93: Udvendig (Tung ydervæg) | D93: 0 | E93: 1½ stens væg med faste bindere pr. 600 mm uden isolering | I93: 79 | M93: 89 | T93: 1850 | X93: 2050
A94: 1920-1960 | B94: Nyere muret byggeri | C94: Udvendig (Tung ydervæg) | D94: 0 | E94: 1½ stens væg med faste bindere pr. 600 mm med hulmursisolering (130 mm) | I94: 34 | M94: 40 | T94: 1850 | X94: 2050
A95: 1920-1960 | B95: Nyere muret byggeri | C95: Udvendig (Tung ydervæg) | D95: =COUNTIFS(A95,$B$1,B95,$B$2,C95,$B$3)+IF(AND(C95=$B$3,A95=$B$1),D94,0) -> 0 | E95: 1¼ stens massiv væg | I95: 91 | M95: 100 | T95: 1850 | X95: 2050
A96: 1920-1960 | B96: Nyere muret byggeri | C96: Udvendig (Tung ydervæg) | D96: 0 | E96: 1¼ stens massiv væg med 50 mm isolering | I96: 32 | M96: 38 | T96: 1850 | X96: 2050
A97: 1920-1960 | B97: Nyere muret byggeri | C97: Udvendig (Tung ydervæg) | D97: 0 | E97: 1¼ stens væg med faste bindinger pr. 600 mm uden isolering | I97: 92 | M97: 110 | T97: 1850 | X97: 2050
A98: 1920-1960 | B98: Nyere muret byggeri | C98: Udvendig (Tung ydervæg) | D98: 0 | E98: 1¼ stens væg med faste bindinger pr. 600 mm med 70 mm isolering | I98: 66 | M98: 74 | T98: 1850 | X98: 2050
A99: 1920-1960 | B99: Nyere muret byggeri | C99: Udvendig (Tung ydervæg) | D99: 0 | E99: 1 stens væg massiv væg | I99: 69 | M99: 78 | T99: 1850 | X99: 2050
A100: 1920-1960 | B100: Nyere muret byggeri | C100: Udvendig (Tung ydervæg) | D100: 0 | E100: 1 stens massiv væg med 50 mm isolering | I100: 35 | M100: 41 | T100: 1850 | X100: 2050
A101: 1920-1960 | B101: Nyere muret byggeri | C101: Kældervæg | D101: 0 | E101: 300 mm beton uden isolering | L101: 149 | N101: 154 | W101: 1700 | Y101: 2000
A102: 1920-1960 | B102: Nyere muret byggeri | C102: Kældervæg | D102: 0 | E102: 350 mm beton uden isolering | L102: 143 | N102: 148 | W102: 1700 | Y102: 2000
A103: 1960-1980 | B103: Industrialiseret byggeri | C103: Kældervæg | D103: 0 | E103: 250 mm beton uden isolering | L103: 155 | N103: 160 | W103: 1700 | Y103: 2000
A104: 1960-1980 | B104: Industrialiseret byggeri | C104: Kældervæg | D104: 0 | E104: 300 mm beton uden isolering | L104: 149 | N104: 154 | W104: 1700 | Y104: 2000
A105: 1960-1980 | B105: Industrialiseret byggeri | C105: Kældervæg | D105: 0 | E105: 350 mm beton uden isolering | L105: 143 | N105: 148 | W105: 1700 | Y105: 2000 | AC105: Udvendig efterisolering med 200 mm isoleringsplader på kælderydervægge. Der skal anvendes et godkendt efterisoleringsprodukt til kælderydervægge. Arbejdet bør udføres i sammenhæng med isolering af samtlige kælderydervæggearealer, placeret både under og over terræn. De samlede isoleringsarbejder skal derfor udføres til så stor dybde som muligt, dog ikke dybere end kældervægsfundamentet. Normalt mindst svarende til samme niveau som underside af indvendigt kældergulv for at bryde kuldebroen. Efter opsætning af den udvendige isolering, udføres der en regntæt inddækning øverst på efterisoleringen. Den skal udformes, så vand der løber ned ad facaden, bliver bortledt fra væggene effektivt. Hvis der ikke forefindes et omfangsdræn, bør dette etableres i forbindelse med efterisoleringsarbejdet.
A106: 1960-1980 | B106: Industrialiseret byggeri | C106: Kældervæg | D106: 0 | E106: 400 mm beton uden isolering | L106: 138 | N106: 143 | W106: 1700 | Y106: 2000
A107: 1850-1920 | B107: Ældre muret byggeri | C107: Kældervæg | D107: 0 | E107: 1½ stens kældervæg uden isolering | L107: 111 | N107: 116 | W107: 1700 | Y107: 2000
A108: 1850-1920 | B108: Ældre muret byggeri | C108: Kældervæg | D108: 0 | E108: 3 stens kældervæg uden isolering | L108: 74 | N108: 79 | W108: 1700 | Y108: 2000
A109: 1850-1920 | B109: Ældre muret byggeri | C109: Kældervæg | D109: 0 | E109: 3½ stens kældervæg uden isolering | L109: 67 | N109: 71 | W109: 1700 | Y109: 2000
A110: 1850-1920 | B110: Ældre muret byggeri | C110: Kældervæg | D110: 0 | E110: 250 mm beton uden isolering | L110: 155 | N110: 160 | W110: 1700 | Y110: 2000
A111: 1850-1920 | B111: Ældre muret byggeri | C111: Kældervæg | D111: 0 | E111: 300 mm beton uden isolering | L111: 149 | N111: 154 | W111: 1700 | Y111: 2000
A112: 1850-1920 | B112: Ældre muret byggeri | C112: Kældervæg | D112: 0 | E112: 350 mm beton uden isolering | L112: 143 | N112: 148 | W112: 1700 | Y112: 2000
A113: 1850-1920 | B113: Ældre muret byggeri | C113: Kældervæg | D113: 0 | E113: 400 mm beton uden isolering | L113: 138 | N113: 143 | W113: 1700 | Y113: 2000
B117: Årgang | C117: Type | D117: 1850-1920 | E117: 1920-1960 | F117: 1960-1980
B118: Vælg | C118: Vælg
B119: 1850-1920 | C119: =IF((HLOOKUP($B$1,$D$117:$F$125,3,FALSE))=0,"",HLOOKUP($B$1,$D$117:$F$125,3,FALSE)) -> Indvendig (Brystninger) | D119: Skråvægge | E119: Indvendig efterisolering (tung ydervæg) | F119: Indvendig (Brystninger)
B120: 1920-1960 | C120: =IF((HLOOKUP($B$1,$D$117:$F$125,4,FALSE))=0,"",HLOOKUP($B$1,$D$117:$F$125,4,FALSE)) -> Kældervæg | D120: Loft | E120: Indvendig (Brystninger) | F120: Kældervæg
B121: 1960-1980 | C121: =IF((HLOOKUP($B$1,$D$117:$F$125,5,FALSE))=0,"",HLOOKUP($B$1,$D$117:$F$125,5,FALSE)) ->  | D121: Indvendig efterisolering (tung ydervæg) | E121: Hulmur
C122: =IF((HLOOKUP($B$1,$D$117:$F$125,6,FALSE))=0,"",HLOOKUP($B$1,$D$117:$F$125,6,FALSE)) ->  | D122: Indvendig (Brystninger) | E122: Udvendig (Tung ydervæg)
C123: =IF((HLOOKUP($B$1,$D$117:$F$125,7,FALSE))=0,"",HLOOKUP($B$1,$D$117:$F$125,7,FALSE)) ->  | D123: Udvendig (Tung ydervæg) | E123: Kældervæg
C124: =IF((HLOOKUP($B$1,$D$117:$F$125,8,FALSE))=0,"",HLOOKUP($B$1,$D$117:$F$125,8,FALSE)) ->  | D124: Kældervæg
C125: =IF((HLOOKUP($B$1,$D$117:$F$125,9,FALSE))=0,"",HLOOKUP($B$1,$D$117:$F$125,9,FALSE)) -> 

Sheet TRY (hidden)
A1: TRY referanceår
A2: TRY er en forkortelse af Test Reference Year. I Danmark benyttes TRY som oftest som betegnelse for Dansk Referenceår TRY (Andersen m.fl., 1982).
P12: Døgnet | R12: Middel | S12: Timer | Y12: kl.8-15 | AA12: Middel | AB12: Timer
P13: 30 | Q13: 27 | R13: =AVERAGE(P13:Q13) -> 28.5 | S13: 5 | U13: =R13*S13 -> 142.5 | Y13: 30 | Z13: 27 | AA13: =AVERAGE(Y13:Z13) -> 28.5 | AB13: 4 | AD13: =AA13*AB13 -> 114
P14: 27 | Q14: 24 | R14: =AVERAGE(P14:Q14) -> 25.5 | S14: 67 | U14: =R14*S14 -> 1708.5 | Y14: 27 | Z14: 24 | AA14: =AVERAGE(Y14:Z14) -> 25.5 | AB14: 45 | AD14: =AA14*AB14 -> 1147.5
P15: 24 | Q15: 21 | R15: 22.5 | S15: 149 | U15: 3352.5 | Y15: 24 | Z15: 21 | AA15: 22.5 | AB15: 98 | AD15: 2205
P16: 21 | Q16: 18 | R16: 19.5 | S16: 512 | U16: 9984 | Y16: 21 | Z16: 18 | AA16: 19.5 | AB16: 296 | AD16: 5772
P17: 18 | Q17: 15 | R17: 16.5 | S17: 1019 | U17: 16813.5 | Y17: 18 | Z17: 15 | AA17: 16.5 | AB17: 441 | AD17: 7276.5
P18: 15 | Q18: 12 | R18: 13.5 | S18: 1296 | U18: 17496 | Y18: 15 | Z18: 12 | AA18: 13.5 | AB18: 339 | AD18: 4576.5
P19: 12 | Q19: 9 | R19: 10.5 | S19: 960 | U19: 10080 | Y19: 12 | Z19: 9 | AA19: 10.5 | AB19: 250 | AD19: 2625
P20: 9 | Q20: 6 | R20: 7.5 | S20: 994 | U20: 7455 | Y20: 9 | Z20: 6 | AA20: 7.5 | AB20: 351 | AD20: 2632.5
P21: 6 | Q21: 3 | R21: 4.5 | S21: 1123 | U21: 5053.5 | Y21: 6 | Z21: 3 | AA21: 4.5 | AB21: 366 | AD21: 1647
P22: 3 | Q22: 0 | R22: 1.5 | S22: 1456 | U22: 2184 | Y22: 3 | Z22: 0 | AA22: 1.5 | AB22: 419 | AD22: 628.5
P23: 0 | Q23: -3 | R23: -1.5 | S23: 749 | U23: -1123.5 | Y23: 0 | Z23: -3 | AA23: -1.5 | AB23: 191 | AD23: -286.5
P24: -3 | Q24: -6 | R24: -4.5 | S24: 250 | U24: -1125 | Y24: -3 | Z24: -6 | AA24: -4.5 | AB24: 83 | AD24: -373.5
P25: -6 | Q25: -9 | R25: -7.5 | S25: 153 | U25: -1147.5 | Y25: -6 | Z25: -9 | AA25: -7.5 | AB25: 31 | AD25: -232.5
P26: -9 | Q26: -12 | R26: -10.5 | S26: 17 | U26: -178.5 | Y26: -9 | Z26: -12 | AA26: -10.5 | AB26: 2 | AD26: -21
P27: -12 | Q27: -15 | R27: -13.5 | S27: 8 | U27: -108 | Y27: -12 | Z27: -15 | AA27: -13.5 | AB27: 3 | AD27: -40.5
P28: -15 | Q28: -16 | R28: -15.5 | S28: 2 | U28: -31 | Y28: -15 | Z28: -16 | AA28: -15.5 | AB28: 1 | AD28: -15.5
S29: =SUM(S13:S28) -> 8760 | AB29: =SUM(AB13:AB28) -> 2920
T30: Setpunkt | U30: 17
U31: Under SP | V31: Over SP
T32: Timer | U32: =SUMIF(TRY!$R$13:$R$28,"<"&$U$30,$S$13:$S$28) -> 8027 | V32: =SUMIF(TRY!$R$13:$R$28,">"&$U$30,$S$13:$S$28) -> 733 | AC32: Middel | AD32: 3.86770772 | AE32: 17.24570728 | AF32: °C
T33: Middel | U33: =SUMIF(TRY!$R$13:$R$28,"<"&U30,TRY!$U$13:$U$28)/SUMIF(TRY!$R$13:$R$28,"<"&U30,TRY!$S$13:$S$28) -> 6.897782484 | V33: =SUMIF(TRY!$R$13:$R$28,">"&U30,TRY!$U$13:$U$28)/SUMIF(TRY!$R$13:$R$28,">"&U30,TRY!$S$13:$S$28) -> 20.71964529 | W33: °C
T34: Differens | U34: =U30-U33 -> 10.10221752 | V34: =U30-V33 -> -3.719645293
A39: Kilde: Statens byggeforskningsinstitut. SBI-rapport 89. København 1974. Vejrdata for VVS-tekniske beregninger - Referenceår. Meteorological Data for Design of Building and Installation: A Reference Year

Sheet Vinduer
A2: Vinduer
A3: Vinduesareal.
A4: Eksisterende vindues type | B4: Vælg | I4: Udskiftning af eksisterende rude med ny energiglas. | J4: 1800 | K4: kr./m²
A5: Nyt vinduestype | B5: Vælg | I5: Udskiftning af eksisterende rude med ny 2 lags energirude og varm kant. | J5: 2000 | K5: kr./m²
A6: Årlig energibesparelse | B6: =IFERROR(VLOOKUP(B4,A22:E27,MATCH(B5,B21:E21,0)+1,FALSE)*B3,"") ->  | I6: Udskiftning af eksisterende vindue med ny 2 lags energirude og varm kant. (hele vinduet) | J6: 4000 | K6: kr./m²
A7: Energikilde | B7: =Info!$B$12 -> Fjernvarme | I7: Udskiftning af eksisterende rude med ny 3 lags energirude og varm kant. (hele vinduet) | J7: 4000 | K7: kr./m²
A8: Pris pr. kWh | B8: =IFERROR(VLOOKUP(B7,Info!A18:B22,2,FALSE),"") -> 0.45
A9: Økonomisk besparelse | B9: =IFERROR(B6*B8,"") -> 
A10: Investering (anslået) | B10: =IFERROR(IF(B11>0,"",(IF(B6>0,HLOOKUP(B5,B21:E29,9,FALSE)*B3,""))),"") -> 
A11: Investering
A12: Tilbagebetalingstid | B12: =IFERROR(IF(B11>0,B11/B9,B10/B9),"") -> 
B20: Indvendig forbedring | D20: Udskiftning
A21: Vælg | B21: Indvendig forbedring + 1 energi | C21: Indvendig forbedring + 2 energi | D21: Udskiftning - 2 energi | E21: Udskiftning - 3 energi
A22: Vinduer/døre med 1 lag glas | B22: 246 | C22: 281 | D22: 284 | E22: 310 | L22: Vinduer/døre med 1 lag glas, forbedring med koblet ramme / forsatsvindue
A23: Vinduer/døre med 2 lag glas (koblede/forsatsvinduer) | B23: 52 | C23: 87 | D23: 111 | E23: 137 | L23: Vinduer/døre med 2 lag glas (koblede/forsatsvinduer) - ved forbedring udskiftes inderste rude
A24: Vinduer/døre med 2 lags termoruder (vinduesudskiftning) | D24: 145 | E24: 171 | L24: Vinduer/døre med 2 lags termoruder, vinduesudskiftning
A25: Vinduer/døre med 2 lags termoruder (rude udskiftning) | D25: 104 | E25: 130 | L25: Vinduer/døre med 2 lags termoruder, udskiftning af ruder
A26: Vinduer/døre med 3 lag glas / energiruder < 1995 (vinduesudskiftning) | D26: 85 | E26: 111 | L26: Vinduer/døre med 3 lag glas / energiruder < 1995, vinduesudskiftning
A27: Vinduer/døre med 3 lag glas / energiruder < 1995 (rude udskiftning) | D27: 43 | E27: 69 | L27: Vinduer/døre med 3 lag glas / energiruder < 1995, udskiftning af ruder
A29: Pris pr. m² | B29: 1800 | C29: 2000 | D29: 4000 | E29: 4000
A31: Energibesparelser i kWh/m2/år ved forbedring og udskiftning af vinduer, døre, ovenlys og glaspartier
B32: Opslagsliste
A33: Vælg | B33: =IFERROR(INDEX($B$36:$E$36,MATCH(B34,$B$35:$E$35,0)),"") ->  | C33: =IFERROR(INDEX($B$36:$E$36,MATCH(C34,$B$35:$E$35,0)),"") ->  | D33: =IFERROR(INDEX($B$36:$E$36,MATCH(D34,$B$35:$E$35,0)),"") ->  | E33: =IFERROR(INDEX($B$36:$E$36,MATCH(E34,$B$35:$E$35,0)),"") -> 
B34: 1 | C34: 2 | D34: 3 | E34: 4
B35: =IF(B36="","",MAX($A$35:A35)+1) ->  | C35: =IF(C36="","",MAX($A$35:B35)+1) ->  | D35: =IF(D36="","",MAX($A$35:C35)+1) ->  | E35: =IF(E36="","",MAX($A$35:D35)+1) -> 
B36: =IF(B37>0,B21,"") ->  | C36: =IF(C37>0,C21,"") ->  | D36: =IF(D37>0,D21,"") ->  | E36: =IF(E37>0,E21,"") -> 
B37: =VLOOKUP($B$4,$A$22:$E$27,2,FALSE) ->  | C37: =VLOOKUP($B$4,$A$22:$E$27,3,FALSE) ->  | D37: =VLOOKUP($B$4,$A$22:$E$27,4,FALSE) ->  | E37: =VLOOKUP($B$4,$A$22:$E$27,5,FALSE) -> 

Sheet Ventilatorskift + Remtræk
A3: Motorstørrelse | B3: 5
A4: Før: I drift fra kl.: | B4: 05:00:00
A5: Før: I drift til kl.: | B5: 10:00:00
A6: Før: Timer pr. dag | B6: =IFERROR((B5-B4)*24,"") -> 5
A7: Før: Dage pr. år | B7: 220
A8: Før: Driftstimer | B8: =IFERROR(B6*B7,"") -> 1100
A9: Efter: I drift fra kl.: | B9: 05:00:00
A10: Efter: I drift til kl.: | B10: 10:00:00
A11: Efter: Timer pr. dag | B11: =IFERROR((B10-B9)*24,"") -> 5
A12: Efter: Dage pr. år | B12: 220
A13: Efter: Driftstimer | B13: =IFERROR(IF(B12="","",B11*B12),"") -> 1100
A14: Remtræk gl. | B14: Remtræk med én almindelig kilerem
A15: Typisk virkningsgrad | B15: 0.96
A16: Remtræk ny. | B16: Direkte trukket
A17: Typisk virkningsgrad | B17: 1
A18: =D51 -> Trykstigning [Pa] | B18: 800
A19: =E51 -> Volumenstrøm [m3/s] | B19: 8 | I19: 1 | J19: 2 | K19: 3 | L19: 4 | M19: 5 | N19: 6 | O19: 7
A20: Volumenstrøm [m3/h] | B20: =IFERROR(B19*3600,"") -> 28800 | I20: Vælg | J20: Typiske virkningsgrader [%]
A21: F-hjul | B21: 0.55 | I21: Remtræk med én almindelig kilerem | J21: 0.93 | K21: 0.94 | L21: 0.95 | M21: 0.96 | N21: 0.97 | O21: 0.98
A22: ="- Effektforbrug [kW]" -> - Effektforbrug [kW] | B22: =IFERROR(IF(B21=0.55,VLOOKUP($B$18,Fhjul55,MATCH($B$19,Volumenstrøm)+1),IF(B21=0.65,VLOOKUP($B$18,Fhjul65,MATCH($B$19,Volumenstrøm)+1),"")),"") -> 16.90840401 | I22: Remtræk med flere almindelig kilerem | J22: 0.9 | K22: 0.91 | L22: 0.92 | M22: 0.93
A23: B-hjul | B23: 0.85 | I23: Remtræk med formfortandet kilerem | J23: 0.96 | K23: 0.97 | L23: 0.98
A24: ="- Effektforbrug [kW]" -> - Effektforbrug [kW] | B24: =IFERROR(IF(B23=0.75,VLOOKUP($B$18,Bhjul75,MATCH($B$19,Volumenstrøm)+1),IF(B23=0.85,VLOOKUP($B$18,Bhjul85,MATCH($B$19,Volumenstrøm)+1),"")),"") -> 10.940732 | I24: Poly-V rem | J24: 0.97 | K24: 0.98 | L24: 0.99
A25: Driftstimer | B25: =IFERROR(B6*B7,"") -> 1100 | I25: Fladremstræk | J25: 0.97 | K25: 0.98 | L25: 0.99
A26: Energibesparelse [kWh/år] | B26: =IFERROR((IFERROR((B22-B24)*(IF(B13="",B8,B13)),0))+IFERROR(B3*(B8-B13),0)+IFERROR((IF((B3*(IF(B13="",B8,B13))*(B17-B15))<0,"",(B3*(IF(B13="",B8,B13))*(B17-B15)))),0),"") -> 6784.439202 | I26: Tandremstræk | J26: 0.97 | K26: 0.98 | L26: 0.99
A27: Energikilde | B27: El | I27: Direkte trukket | J27: 1
A28: Pris pr. kWh | B28: =IFERROR(VLOOKUP(B27,Info!A18:B22,2,FALSE),"") -> 1.6
A29: Økonomisk besparelse | B29: =IFERROR(B26*B28,"") -> 10855.10272
A30: Investering | B30: 50000 | H30: Gl | I30: Vælg | J30: =IFERROR(IF(VLOOKUP($B$14,$I$21:$O$27,J19,FALSE)=0,"",VLOOKUP($B$14,$I$21:$O$27,J19,FALSE)),"") -> 0.93 | K30: 0.94 | L30: 0.95 | M30: 0.96 | N30: 0.97 | O30: 0.98
A31: Tilbagebetalingstid | B31: =IFERROR(B30/B29,"") -> 4.606128682 | H31: Ny | I31: Vælg | J31: =IFERROR(IF(VLOOKUP($B$16,$I$21:$O$27,J19,FALSE)=0,"",VLOOKUP($B$16,$I$21:$O$27,J19,FALSE)),"") -> 1
D50: Radialventilator med F-hjul worst case 55% virkninsgrad | P50: Radialventilator med B-hjul worst case 75% virkninsgrad
D51: Trykstigning [Pa] | E51: Volumenstrøm [m3/s] | P51: Trykstigning [Pa] | Q51: Volumenstrøm [m3/s] | AD51: Virkningsgrad remtræk: | AG51: 0.93
D52: Vælg | E52: 2 | F52: 4 | G52: 6 | H52: 8 | I52: 10 | J52: 12 | K52: 14 | L52: 16 | M52: 18 | N52: 20 | Q52: 2 | R52: 4 | S52: 6 | T52: 8 | U52: 10 | V52: 12 | W52: 14 | X52: 16 | Y52: 18 | Z52: 20 | AD52: Virkningsgrad motor | AG52: 0.925
D53: 200 | E53: =(($D$53*E52)/($AG$51*$AG$52*0.55))/1000 -> 0.8454202003 | F53: 1.690840401 | G53: 2.536260601 | H53: 3.381680801 | I53: 4.227101001 | J53: 5.072521202 | K53: 5.917941402 | L53: 6.763361602 | M53: 7.608781802 | N53: 8.454202003 | P53: 200 | Q53: =(($P$53*Q52)/($AG$51*$AG$52*0.75))/1000 -> 0.6199748135 | R53: =(($P$53*R52)/($AG$51*$AG$52*0.75))/1000 -> 1.239949627 | S53: 1.859924441 | T53: 2.479899254 | U53: 3.099874068 | V53: 3.719848881 | W53: 4.339823695 | X53: 4.959798508 | Y53: 5.579773322 | Z53: 6.199748135
D54: 400 | E54: =(($D$54*E52)/($AG$51*$AG$52*0.55))/1000 -> 1.690840401 | F54: 3.381680801 | G54: 5.072521202 | H54: 6.763361602 | I54: 8.454202003 | J54: 10.1450424 | K54: 11.8358828 | L54: 13.5267232 | M54: 15.2175636 | N54: 16.90840401 | P54: 400 | Q54: =(($P$54*Q52)/($AG$51*$AG$52*0.75))/1000 -> 1.239949627 | R54: =(($P$54*R52)/($AG$51*$AG$52*0.75))/1000 -> 2.479899254 | S54: 3.719848881 | T54: 4.959798508 | U54: 6.199748135 | V54: 7.439697762 | W54: 8.679647389 | X54: 9.919597016 | Y54: 11.15954664 | Z54: =(($P$54*Z52)/($AG$51*$AG$52*0.75))/1000 -> 12.39949627
D55: 600 | E55: =(($D$55*E52)/($AG$51*$AG$52*0.55))/1000 -> 2.536260601 | F55: 5.072521202 | G55: 7.608781802 | H55: 10.1450424 | I55: 12.681303 | J55: 15.2175636 | K55: 17.75382421 | L55: 20.29008481 | M55: 22.82634541 | N55: 25.36260601 | P55: 600 | Q55: =(($P$55*Q52)/($AG$51*$AG$52*0.75))/1000 -> 1.859924441 | R55: =(($P$55*R52)/($AG$51*$AG$52*0.75))/1000 -> 3.719848881 | S55: 5.579773322 | T55: 7.439697762 | U55: 9.299622203 | V55: 11.15954664 | W55: 13.01947108 | X55: 14.87939552 | Y55: 16.73931997 | Z55: 18.59924441
D56: 800 | E56: =(($D$56*E52)/($AG$51*$AG$52*0.55))/1000 -> 3.381680801 | F56: 6.763361602 | G56: 10.1450424 | H56: 13.5267232 | I56: 16.90840401 | J56: 20.29008481 | K56: 23.67176561 | L56: 27.05344641 | M56: 30.43512721 | N56: 33.81680801 | P56: 800 | Q56: =(($P$56*Q52)/($AG$51*$AG$52*0.75))/1000 -> 2.479899254 | R56: =(($P$56*R52)/($AG$51*$AG$52*0.75))/1000 -> 4.959798508 | S56: 7.439697762 | T56: 9.919597016 | U56: 12.39949627 | V56: 14.87939552 | W56: 17.35929478 | X56: 19.83919403 | Y56: 22.31909329 | Z56: 24.79899254
D57: 1000 | E57: =(($D$57*E52)/($AG$51*$AG$52*0.55))/1000 -> 4.227101001 | F57: 8.454202003 | G57: 12.681303 | H57: 16.90840401 | I57: 21.13550501 | J57: 25.36260601 | K57: 29.58970701 | L57: 33.81680801 | M57: 38.04390901 | N57: 42.27101001 | P57: 1000 | Q57: =(($P$57*Q52)/($AG$51*$AG$52*0.75))/1000 -> 3.099874068 | R57: =(($P$57*R52)/($AG$51*$AG$52*0.75))/1000 -> 6.199748135 | S57: 9.299622203 | T57: 12.39949627 | U57: 15.49937034 | V57: 18.59924441 | W57: 21.69911847 | X57: 24.79899254 | Y57: 27.89886661 | Z57: 30.99874068
D58: 1200 | E58: =(($D$58*E52)/($AG$51*$AG$52*0.55))/1000 -> 5.072521202 | F58: 10.1450424 | G58: 15.2175636 | H58: 20.29008481 | I58: 25.36260601 | J58: 30.43512721 | K58: 35.50764841 | L58: 40.58016961 | M58: 45.65269081 | N58: 50.72521202 | P58: 1200 | Q58: =(($P$58*Q52)/($AG$51*$AG$52*0.75))/1000 -> 3.719848881 | R58: =(($P$58*R52)/($AG$51*$AG$52*0.75))/1000 -> 7.439697762 | S58: 11.15954664 | T58: 14.87939552 | U58: 18.59924441 | V58: 22.31909329 | W58: 26.03894217 | X58: 29.75879105 | Y58: 33.47863993 | Z58: 37.19848881
D59: 1400 | E59: =(($D$59*E52)/($AG$51*$AG$52*0.55))/1000 -> 5.917941402 | F59: 11.8358828 | G59: 17.75382421 | H59: 23.67176561 | I59: 29.58970701 | J59: 35.50764841 | K59: 41.42558981 | L59: 47.34353121 | M59: 53.26147262 | N59: 59.17941402 | P59: 1400 | Q59: =(($P$59*Q52)/($AG$51*$AG$52*0.75))/1000 -> 4.339823695 | R59: =(($P$59*R52)/($AG$51*$AG$52*0.75))/1000 -> 8.679647389 | S59: 13.01947108 | T59: 17.35929478 | U59: 21.69911847 | V59: 26.03894217 | W59: 30.37876586 | X59: 34.71858956 | Y59: 39.05841325 | Z59: 43.39823695
D60: 1600 | E60: =(($D$60*E52)/($AG$51*$AG$52*0.55))/1000 -> 6.763361602 | F60: 13.5267232 | G60: 20.29008481 | H60: 27.05344641 | I60: 33.81680801 | J60: 40.58016961 | K60: 47.34353121 | L60: 54.10689282 | M60: 60.87025442 | N60: 67.63361602 | P60: 1600 | Q60: =(($P$60*Q52)/($AG$51*$AG$52*0.75))/1000 -> 4.959798508 | R60: =(($P$60*R52)/($AG$51*$AG$52*0.75))/1000 -> 9.919597016 | S60: 14.87939552 | T60: 19.83919403 | U60: 24.79899254 | V60: 29.75879105 | W60: 34.71858956 | X60: 39.67838807 | Y60: 44.63818657 | Z60: 49.59798508
D61: 1800 | E61: =(($D$61*E52)/($AG$51*$AG$52*0.55))/1000 -> 7.608781802 | F61: 15.2175636 | G61: 22.82634541 | H61: 30.43512721 | I61: 38.04390901 | J61: 45.65269081 | K61: 53.26147262 | L61: 60.87025442 | M61: 68.47903622 | N61: 76.08781802 | P61: 1800 | Q61: =(($P$61*Q52)/($AG$51*$AG$52*0.75))/1000 -> 5.579773322 | R61: =(($P$61*R52)/($AG$51*$AG$52*0.75))/1000 -> 11.15954664 | S61: 16.73931997 | T61: 22.31909329 | U61: 27.89886661 | V61: 33.47863993 | W61: 39.05841325 | X61: 44.63818657 | Y61: 50.2179599 | Z61: 55.79773322
D62: 2000 | E62: =(($D$62*E52)/($AG$51*$AG$52*0.55))/1000 -> 8.454202003 | F62: 16.90840401 | G62: 25.36260601 | H62: 33.81680801 | I62: 42.27101001 | J62: 50.72521202 | K62: 59.17941402 | L62: 67.63361602 | M62: 76.08781802 | N62: 84.54202003 | P62: 2000 | Q62: =(($P$62*Q52)/($AG$51*$AG$52*0.75))/1000 -> 6.199748135 | R62: =(($P$62*R52)/($AG$51*$AG$52*0.75))/1000 -> 12.39949627 | S62: 18.59924441 | T62: 24.79899254 | U62: 30.99874068 | V62: 37.19848881 | W62: 43.39823695 | X62: 49.59798508 | Y62: 55.79773322 | Z62: 61.99748135
D63: 2200 | E63: =(($D$63*E52)/($AG$51*$AG$52*0.55))/1000 -> 9.299622203 | F63: 18.59924441 | G63: 27.89886661 | H63: 37.19848881 | I63: 46.49811101 | J63: 55.79773322 | K63: 65.09735542 | L63: 74.39697762 | M63: 83.69659983 | N63: 92.99622203 | P63: 2200 | Q63: =(($P$63*Q52)/($AG$51*$AG$52*0.75))/1000 -> 6.819722949 | R63: =(($P$63*R52)/($AG$51*$AG$52*0.75))/1000 -> 13.6394459 | S63: 20.45916885 | T63: 27.2788918 | U63: 34.09861474 | V63: 40.91833769 | W63: 47.73806064 | X63: 54.55778359 | Y63: =(($P$63*Y52)/($AG$51*$AG$52*0.75))/1000 -> 61.37750654 | Z63: 68.19722949
D64: 2400 | E64: =(($D$64*E52)/($AG$51*$AG$52*0.55))/1000 -> 10.1450424 | F64: 20.29008481 | G64: 30.43512721 | H64: 40.58016961 | I64: 50.72521202 | J64: 60.87025442 | K64: 71.01529682 | L64: 81.16033922 | M64: 91.30538163 | N64: 101.450424 | P64: 2400 | Q64: =(($P$64*Q52)/($AG$51*$AG$52*0.75))/1000 -> 7.439697762 | R64: =(($P$64*R52)/($AG$51*$AG$52*0.75))/1000 -> 14.87939552 | S64: 22.31909329 | T64: 29.75879105 | U64: 37.19848881 | V64: 44.63818657 | W64: 52.07788434 | X64: 59.5175821 | Y64: 66.95727986 | Z64: 74.39697762
D67: Radialventilator med F-hjul best case 65% virkninsgrad | P67: Radialventilator med B-hjul best case 85% virkninsgrad
D68: Trykstigning [Pa] | E68: Volumenstrøm [m3/s] | P68: Trykstigning [Pa] | Q68: Volumenstrøm [m3/s]
E69: 2 | F69: 4 | G69: 6 | H69: 8 | I69: 10 | J69: 12 | K69: 14 | L69: 16 | M69: 18 | N69: 20 | Q69: 2 | R69: 4 | S69: 6 | T69: 8 | U69: 10 | V69: 12 | W69: 14 | X69: 16 | Y69: 18 | Z69: 20
D70: 200 | E70: =(($D$53*E69)/($AG$51*$AG$52*0.65))/1000 -> 0.7153555541 | F70: 1.430711108 | G70: 2.146066662 | H70: 2.861422216 | I70: 3.57677777 | J70: 4.292133324 | K70: 5.007488878 | L70: 5.722844433 | M70: 6.438199987 | N70: 7.153555541 | P70: 200 | Q70: =(($P$70*Q69)/($AG$51*$AG$52*0.85))/1000 -> 0.5470366002 | R70: =(($P$70*R69)/($AG$51*$AG$52*0.85))/1000 -> 1.0940732 | S70: 1.641109801 | T70: 2.188146401 | U70: 2.735183001 | V70: 3.282219601 | W70: 3.829256201 | X70: 4.376292801 | Y70: 4.923329402 | Z70: 5.470366002
D71: 400 | E71: =(($D$54*E69)/($AG$51*$AG$52*0.65))/1000 -> 1.430711108 | F71: 2.861422216 | G71: 4.292133324 | H71: 5.722844433 | I71: 7.153555541 | J71: 8.584266649 | K71: 10.01497776 | L71: 11.44568887 | M71: 12.87639997 | N71: 14.30711108 | P71: 400 | Q71: =(($P$71*Q$69)/($AG$51*$AG$52*0.85))/1000 -> 1.0940732 | R71: =(($P$71*R$69)/($AG$51*$AG$52*0.85))/1000 -> 2.188146401 | S71: 3.282219601 | T71: 4.376292801 | U71: 5.470366002 | V71: 6.564439202 | W71: 7.658512402 | X71: 8.752585603 | Y71: 9.846658803 | Z71: 10.940732
D72: 600 | E72: =(($D$55*E69)/($AG$51*$AG$52*0.65))/1000 -> 2.146066662 | F72: 4.292133324 | G72: 6.438199987 | H72: 8.584266649 | I72: 10.73033331 | J72: 12.87639997 | K72: 15.02246664 | L72: 17.1685333 | M72: 19.31459996 | N72: 21.46066662 | P72: 600 | Q72: =(($P$72*Q$69)/($AG$51*$AG$52*0.85))/1000 -> 1.641109801 | R72: =(($P$72*R$69)/($AG$51*$AG$52*0.85))/1000 -> 3.282219601 | S72: 4.923329402 | T72: 6.564439202 | U72: 8.205549003 | V72: 9.846658803 | W72: 11.4877686 | X72: 13.1288784 | Y72: 14.7699882 | Z72: 16.41109801
D73: 800 | E73: =(($D$56*E69)/($AG$51*$AG$52*0.65))/1000 -> 2.861422216 | F73: 5.722844433 | G73: 8.584266649 | H73: 11.44568887 | I73: 14.30711108 | J73: 17.1685333 | K73: 20.02995551 | L73: 22.89137773 | M73: 25.75279995 | N73: 28.61422216 | P73: 800 | Q73: =(($P$73*Q$69)/($AG$51*$AG$52*0.85))/1000 -> 2.188146401 | R73: =(($P$73*R$69)/($AG$51*$AG$52*0.85))/1000 -> 4.376292801 | S73: 6.564439202 | T73: 8.752585603 | U73: 10.940732 | V73: 13.1288784 | W73: 15.3170248 | X73: 17.50517121 | Y73: 19.69331761 | Z73: 21.88146401
D74: 1000 | E74: =(($D$57*E69)/($AG$51*$AG$52*0.65))/1000 -> 3.57677777 | F74: 7.153555541 | G74: 10.73033331 | H74: 14.30711108 | I74: 17.88388885 | J74: 21.46066662 | K74: 25.03744439 | L74: 28.61422216 | M74: 32.19099993 | N74: 35.7677777 | P74: 1000 | Q74: =(($P$74*Q$69)/($AG$51*$AG$52*0.85))/1000 -> 2.735183001 | R74: =(($P$74*R$69)/($AG$51*$AG$52*0.85))/1000 -> 5.470366002 | S74: 8.205549003 | T74: 10.940732 | U74: 13.675915 | V74: 16.41109801 | W74: 19.14628101 | X74: 21.88146401 | Y74: 24.61664701 | Z74: 27.35183001
D75: 1200 | E75: =(($D$58*E69)/($AG$51*$AG$52*0.65))/1000 -> 4.292133324 | F75: 8.584266649 | G75: 12.87639997 | H75: 17.1685333 | I75: 21.46066662 | J75: 25.75279995 | K75: 30.04493327 | L75: 34.3370666 | M75: 38.62919992 | N75: 42.92133324 | P75: 1200 | Q75: =(($P$75*Q$69)/($AG$51*$AG$52*0.85))/1000 -> 3.282219601 | R75: =(($P$75*R$69)/($AG$51*$AG$52*0.85))/1000 -> 6.564439202 | S75: 9.846658803 | T75: 13.1288784 | U75: 16.41109801 | V75: 19.69331761 | W75: 22.97553721 | X75: 26.25775681 | Y75: 29.53997641 | Z75: 32.82219601
D76: 1400 | E76: =(($D$59*E69)/($AG$51*$AG$52*0.65))/1000 -> 5.007488878 | F76: 10.01497776 | G76: 15.02246664 | H76: 20.02995551 | I76: 25.03744439 | J76: 30.04493327 | K76: 35.05242215 | L76: 40.05991103 | M76: 45.06739991 | N76: 50.07488878 | P76: 1400 | Q76: =(($P$76*Q$69)/($AG$51*$AG$52*0.85))/1000 -> 3.829256201 | R76: =(($P$76*R$69)/($AG$51*$AG$52*0.85))/1000 -> 7.658512402 | S76: 11.4877686 | T76: 15.3170248 | U76: 19.14628101 | V76: 22.97553721 | W76: 26.80479341 | X76: 30.63404961 | Y76: 34.46330581 | Z76: 38.29256201
D77: 1600 | E77: =(($D$60*E69)/($AG$51*$AG$52*0.65))/1000 -> 5.722844433 | F77: 11.44568887 | G77: 17.1685333 | H77: 22.89137773 | I77: 28.61422216 | J77: 34.3370666 | K77: 40.05991103 | L77: 45.78275546 | M77: 51.50559989 | N77: 57.22844433 | P77: 1600 | Q77: =(($P$77*Q$69)/($AG$51*$AG$52*0.85))/1000 -> 4.376292801 | R77: =(($P$77*R$69)/($AG$51*$AG$52*0.85))/1000 -> 8.752585603 | S77: 13.1288784 | T77: 17.50517121 | U77: 21.88146401 | V77: 26.25775681 | W77: 30.63404961 | X77: 35.01034241 | Y77: 39.38663521 | Z77: 43.76292801
D78: 1800 | E78: =(($D$61*E69)/($AG$51*$AG$52*0.65))/1000 -> 6.438199987 | F78: 12.87639997 | G78: 19.31459996 | H78: 25.75279995 | I78: 32.19099993 | J78: 38.62919992 | K78: 45.06739991 | L78: 51.50559989 | M78: 57.94379988 | N78: 64.38199987 | P78: 1800 | Q78: =(($P$78*Q$69)/($AG$51*$AG$52*0.85))/1000 -> 4.923329402 | R78: =(($P$78*R$69)/($AG$51*$AG$52*0.85))/1000 -> 9.846658803 | S78: 14.7699882 | T78: 19.69331761 | U78: 24.61664701 | V78: 29.53997641 | W78: 34.46330581 | X78: 39.38663521 | Y78: 44.30996461 | Z78: 49.23329402
D79: 2000 | E79: =(($D$62*E69)/($AG$51*$AG$52*0.65))/1000 -> 7.153555541 | F79: 14.30711108 | G79: 21.46066662 | H79: 28.61422216 | I79: 35.7677777 | J79: 42.92133324 | K79: 50.07488878 | L79: 57.22844433 | M79: 64.38199987 | N79: 71.53555541 | P79: 2000 | Q79: =(($P$79*Q$69)/($AG$51*$AG$52*0.85))/1000 -> 5.470366002 | R79: =(($P$79*R$69)/($AG$51*$AG$52*0.85))/1000 -> 10.940732 | S79: 16.41109801 | T79: 21.88146401 | U79: 27.35183001 | V79: 32.82219601 | W79: 38.29256201 | X79: 43.76292801 | Y79: 49.23329402 | Z79: 54.70366002
D80: 2200 | E80: =(($D$63*E69)/($AG$51*$AG$52*0.65))/1000 -> 7.868911095 | F80: 15.73782219 | G80: 23.60673328 | H80: 31.47564438 | I80: 39.34455547 | J80: 47.21346657 | K80: 55.08237766 | L80: 62.95128876 | M80: 70.82019985 | N80: 78.68911095 | P80: 2200 | Q80: =(($P$80*Q$69)/($AG$51*$AG$52*0.85))/1000 -> 6.017402602 | R80: =(($P$80*R$69)/($AG$51*$AG$52*0.85))/1000 -> 12.0348052 | S80: 18.05220781 | T80: 24.06961041 | U80: 30.08701301 | V80: 36.10441561 | W80: 42.12181821 | X80: 48.13922081 | Y80: 54.15662342 | Z80: 60.17402602
D81: 2400 | E81: =(($D$64*E69)/($AG$51*$AG$52*0.65))/1000 -> 8.584266649 | F81: 17.1685333 | G81: 25.75279995 | H81: 34.3370666 | I81: 42.92133324 | J81: 51.50559989 | K81: 60.08986654 | L81: 68.67413319 | M81: 77.25839984 | N81: 85.84266649 | P81: 2400 | Q81: =(($P$81*Q$69)/($AG$51*$AG$52*0.85))/1000 -> 6.564439202 | R81: =(($P$81*R$69)/($AG$51*$AG$52*0.85))/1000 -> 13.1288784 | S81: 19.69331761 | T81: 26.25775681 | U81: 32.82219601 | V81: 39.38663521 | W81: 45.95107441 | X81: 52.51551362 | Y81: 59.07995282 | Z81: 65.64439202
D84: Besparelsespotentiale ved skift fra radialventilator med F-hjul til radialventilator med B-hjul worst case [kW] | P84: Besparelsespotentiale ved skift fra radialventilator med F-hjul til radialventilator med B-hjul best case [kW]
D85: Trykstigning [Pa] | E85: Volumenstrøm [m3/s] | P85: Trykstigning [Pa] | Q85: Volumenstrøm [m3/s]
E86: 2 | F86: 4 | G86: 6 | H86: 8 | I86: 10 | J86: 12 | K86: 14 | L86: 16 | M86: 18 | N86: 20 | Q86: 2 | R86: 4 | S86: 6 | T86: 8 | U86: 10 | V86: 12 | W86: 14 | X86: 16 | Y86: 18 | Z86: 20
D87: 200 | E87: =E53-Q53 -> 0.2254453867 | F87: =F53-R53 -> 0.4508907735 | G87: 0.6763361602 | H87: 0.9017815469 | I87: 1.127226934 | J87: 1.35267232 | K87: 1.578117707 | L87: 1.803563094 | M87: 2.029008481 | N87: 2.254453867 | P87: 200 | Q87: =E70-Q70 -> 0.1683189539 | R87: =F70-R70 -> 0.3366379078 | S87: 0.5049568617 | T87: 0.6732758156 | U87: 0.8415947695 | V87: 1.009913723 | W87: 1.178232677 | X87: 1.346551631 | Y87: 1.514870585 | Z87: 1.683189539
D88: 400 | E88: =E54-Q54 -> 0.4508907735 | F88: 0.9017815469 | G88: 1.35267232 | H88: 1.803563094 | I88: 2.254453867 | J88: 2.705344641 | K88: 3.156235414 | L88: 3.607126188 | M88: 4.058016961 | N88: 4.508907735 | P88: 400 | Q88: =E71-Q71 -> 0.3366379078 | R88: 0.6732758156 | S88: 1.009913723 | T88: 1.346551631 | U88: 1.683189539 | V88: 2.019827447 | W88: 2.356465355 | X88: 2.693103262 | Y88: 3.02974117 | Z88: 3.366379078
D89: 600 | E89: 0.6763361602 | F89: 1.35267232 | G89: 2.029008481 | H89: 2.705344641 | I89: 3.381680801 | J89: 4.058016961 | K89: =K55-W55 -> 4.734353121 | L89: 5.410689282 | M89: 6.087025442 | N89: 6.763361602 | P89: 600 | Q89: 0.5049568617 | R89: 1.009913723 | S89: 1.514870585 | T89: 2.019827447 | U89: 2.524784308 | V89: 3.02974117 | W89: 3.534698032 | X89: 4.039654894 | Y89: 4.544611755 | Z89: 5.049568617
D90: 800 | E90: 0.9017815469 | F90: 1.803563094 | G90: 2.705344641 | H90: 3.607126188 | I90: 4.508907735 | J90: 5.410689282 | K90: 6.312470829 | L90: 7.214252376 | M90: 8.116033922 | N90: 9.017815469 | P90: 800 | Q90: 0.6732758156 | R90: 1.346551631 | S90: 2.019827447 | T90: 2.693103262 | U90: 3.366379078 | V90: 4.039654894 | W90: 4.712930709 | X90: 5.386206525 | Y90: 6.05948234 | Z90: 6.732758156
D91: 1000 | E91: 1.127226934 | F91: 2.254453867 | G91: 3.381680801 | H91: 4.508907735 | I91: 5.636134668 | J91: 6.763361602 | K91: 7.890588536 | L91: 9.017815469 | M91: 10.1450424 | N91: 11.27226934 | P91: 1000 | Q91: 0.8415947695 | R91: 1.683189539 | S91: 2.524784308 | T91: 3.366379078 | U91: 4.207973847 | V91: 5.049568617 | W91: 5.891163386 | X91: 6.732758156 | Y91: 7.574352925 | Z91: 8.415947695
D92: 1200 | E92: 1.35267232 | F92: 2.705344641 | G92: 4.058016961 | H92: 5.410689282 | I92: 6.763361602 | J92: 8.116033922 | K92: 9.468706243 | L92: 10.82137856 | M92: 12.17405088 | N92: 13.5267232 | P92: 1200 | Q92: 1.009913723 | R92: 2.019827447 | S92: 3.02974117 | T92: 4.039654894 | U92: 5.049568617 | V92: 6.05948234 | W92: 7.069396064 | X92: 8.079309787 | Y92: 9.08922351 | Z92: 10.09913723
D93: 1400 | E93: 1.578117707 | F93: 3.156235414 | G93: 4.734353121 | H93: 6.312470829 | I93: 7.890588536 | J93: 9.468706243 | K93: 11.04682395 | L93: 12.62494166 | M93: 14.20305936 | N93: 15.78117707 | P93: 1400 | Q93: 1.178232677 | R93: 2.356465355 | S93: 3.534698032 | T93: 4.712930709 | U93: 5.891163386 | V93: 7.069396064 | W93: 8.247628741 | X93: 9.425861418 | Y93: 10.6040941 | Z93: 11.78232677
D94: 1600 | E94: 1.803563094 | F94: 3.607126188 | G94: 5.410689282 | H94: 7.214252376 | I94: 9.017815469 | J94: 10.82137856 | K94: 12.62494166 | L94: 14.42850475 | M94: 16.23206784 | N94: 18.03563094 | P94: 1600 | Q94: 1.346551631 | R94: 2.693103262 | S94: 4.039654894 | T94: 5.386206525 | U94: 6.732758156 | V94: 8.079309787 | W94: 9.425861418 | X94: 10.77241305 | Y94: 12.11896468 | Z94: 13.46551631
D95: 1800 | E95: 2.029008481 | F95: 4.058016961 | G95: 6.087025442 | H95: 8.116033922 | I95: 10.1450424 | J95: 12.17405088 | K95: 14.20305936 | L95: 16.23206784 | M95: 18.26107633 | N95: 20.29008481 | P95: 1800 | Q95: 1.514870585 | R95: 3.02974117 | S95: 4.544611755 | T95: 6.05948234 | U95: 7.574352925 | V95: 9.08922351 | W95: 10.6040941 | X95: 12.11896468 | Y95: 13.63383527 | Z95: 15.14870585
D96: 2000 | E96: 2.254453867 | F96: 4.508907735 | G96: 6.763361602 | H96: 9.017815469 | I96: 11.27226934 | J96: 13.5267232 | K96: 15.78117707 | L96: 18.03563094 | M96: 20.29008481 | N96: 22.54453867 | P96: 2000 | Q96: 1.683189539 | R96: 3.366379078 | S96: 5.049568617 | T96: 6.732758156 | U96: 8.415947695 | V96: 10.09913723 | W96: 11.78232677 | X96: 13.46551631 | Y96: 15.14870585 | Z96: 16.83189539
D97: 2200 | E97: 2.479899254 | F97: 4.959798508 | G97: 7.439697762 | H97: 9.919597016 | I97: 12.39949627 | J97: 14.87939552 | K97: 17.35929478 | L97: 19.83919403 | M97: 22.31909329 | N97: 24.79899254 | P97: 2200 | Q97: 1.851508493 | R97: 3.703016986 | S97: 5.554525479 | T97: 7.406033971 | U97: 9.257542464 | V97: 11.10905096 | W97: 12.96055945 | X97: 14.81206794 | Y97: 16.66357644 | Z97: 18.51508493
D98: 2400 | E98: 2.705344641 | F98: 5.410689282 | G98: 8.116033922 | H98: 10.82137856 | I98: 13.5267232 | J98: 16.23206784 | K98: 18.93741249 | L98: 21.64275713 | M98: 24.34810177 | N98: 27.05344641 | P98: 2400 | Q98: 2.019827447 | R98: 4.039654894 | S98: 6.05948234 | T98: 8.079309787 | U98: 10.09913723 | V98: 12.11896468 | W98: 14.13879213 | X98: 16.15861957 | Y98: 18.17844702 | Z98: 20.19827447
D101: Besparelsespotentiale pr. ventilator ved skift fra radialventilator med F-hjul til radialventilator med B-hjul - min/maks [kW]
D102: Trykstigning [Pa] | E102: Volumenstrøm [m3/s]
E103: 2 | F103: 4 | G103: 6 | H103: 8 | I103: 10 | J103: 12 | K103: 14 | L103: 16 | M103: 18 | N103: 20
D104: 200 | E104: 0.2 | F104: 0,3-0,4 | G104: =G70-S70 -> 0.5049568617 | H104: 0.6732758156 | I104: 0.8415947695 | J104: 1.009913723 | K104: 1.178232677 | L104: 1.346551631 | M104: 1.514870585 | N104: 1.683189539
D105: 400 | E105: 0,3-0,4 | F105: 0,6-0,9 | G105: 1.009913723 | H105: 1.346551631 | I105: 1.683189539 | J105: 2.019827447 | K105: 2.356465355 | L105: 2.693103262 | M105: 3.02974117 | N105: 3.366379078
D106: 600 | E106: 0,6-0,5 | F106: 1-1,3 | G106: 1.514870585 | H106: 2.019827447 | I106: 2.524784308 | J106: 3.02974117 | K106: =K72-W72 -> 3.534698032 | L106: 4.039654894 | M106: 4.544611755 | N106: 5.049568617
D107: 800 | E107: 0,6-0,9 | F107: 1,3-1,7 | G107: 2.019827447 | H107: 2.693103262 | I107: 3.366379078 | J107: 4.039654894 | K107: 4.712930709 | L107: 5.386206525 | M107: 6.05948234 | N107: 6.732758156
D108: 1000 | E108: 0,8-1,1 | F108: 1,6-2,2 | G108: 2.524784308 | H108: 3.366379078 | I108: 4.207973847 | J108: 5.049568617 | K108: 5.891163386 | L108: 6.732758156 | M108: 7.574352925 | N108: 8.415947695
D109: 1200 | E109: 1-1,3 | F109: 1,9-2,6 | G109: 3.02974117 | H109: 4.039654894 | I109: 5.049568617 | J109: 6.05948234 | K109: 7.069396064 | L109: 8.079309787 | M109: 9.08922351 | N109: 10.09913723
D110: 1400 | E110: 1,1-1,5 | F110: =F76-R76 -> 2.356465355 | G110: 3.534698032 | H110: 4.712930709 | I110: 5.891163386 | J110: 7.069396064 | K110: 8.247628741 | L110: 9.425861418 | M110: 10.6040941 | N110: 11.78232677
D111: 1600 | E111: 1,3-1,7 | F111: 2.693103262 | G111: 4.039654894 | H111: 5.386206525 | I111: 6.732758156 | J111: 8.079309787 | K111: 9.425861418 | L111: 10.77241305 | M111: 12.11896468 | N111: 13.46551631
D112: 1800 | E112: 1,5-1,9 | F112: 3.02974117 | G112: 4.544611755 | H112: 6.05948234 | I112: 7.574352925 | J112: 9.08922351 | K112: 10.6040941 | L112: 12.11896468 | M112: 13.63383527 | N112: 15.14870585
D113: 2000 | E113: 1,6-2,2 | F113: 3.366379078 | G113: 5.049568617 | H113: 6.732758156 | I113: 8.415947695 | J113: 10.09913723 | K113: 11.78232677 | L113: 13.46551631 | M113: 15.14870585 | N113: 16.83189539
D114: 2200 | E114: 1,8-2,4 | F114: 3.703016986 | G114: 5.554525479 | H114: 7.406033971 | I114: 9.257542464 | J114: 11.10905096 | K114: 12.96055945 | L114: 14.81206794 | M114: 16.66357644 | N114: 18.51508493
D115: 2400 | E115: 1,9-2,6 | F115: 4.039654894 | G115: 6.05948234 | H115: 8.079309787 | I115: 10.09913723 | J115: 12.11896468 | K115: 14.13879213 | L115: 16.15861957 | M115: 18.17844702 | N115: 20.19827447
I119: Vælg
D120: =D50 -> Radialventilator med F-hjul worst case 55% virkninsgrad | I120: 0.55
D121: =D67 -> Radialventilator med F-hjul best case 65% virkninsgrad | I121: 0.65
I123: Vælg
D124: =P50 -> Radialventilator med B-hjul worst case 75% virkninsgrad | I124: 0.75
D125: =P67 -> Radialventilator med B-hjul best case 85% virkninsgrad | I125: 0.85

Sheet Luftmængde + Veksler
A3: Hovedluftmængde [m³/h]
A4: I drift fra kl.: | B4: Vælg
A5: I drift til kl.: | B5: Vælg
A6: Timer pr. dag | B6: =IFERROR((B5-B4)*24,"") -> 
A7: Dage pr. år
A8: Temperatur indblæsning | B8: Vælg
A9: Nødvendig energi | B9: =IFERROR(('Tabel for nødvendig energiforb.'!K15-'Tabel for nødvendig energiforb.'!K13)*((B7*B6)/(365*B6))*B3,"") -> 
A10: Vekslertype gl. | B10: Vælg
A11: ηveksler | B11: =VLOOKUP(B10,$B$99:$C$112,2,FALSE) -> -
A12: Vekslertype ny | B12: Vælg
A13: ηveksler | B13: =VLOOKUP(B12,$B$99:$C$112,2,FALSE) -> -
A14: Energibesparelse | B14: =IFERROR(B13*B9-B11*B9,"") -> 
A15: Energikilde | B15: =Info!$B$12 -> Fjernvarme
A16: Pris pr. kWh | B16: =IFERROR(VLOOKUP(B15,Info!A18:B22,2,FALSE),"") -> 0.45
A17: Økonomisk besparelse | B17: =IFERROR(B14*B16,"") -> 
A18: Investering
A19: Tilbagebetalingstid | B19: =IFERROR(B18/B17,"") -> 
A98: Temperatur | B98: Vekslertype | C98: ηveksler | D98: Energikilde | E98: Driftstidspunkt
A99: Vælg | B99: Vælg | C99: - | D99: Vælg | E99: Vælg
A100: 18 | B100: Ingen | C100: 0 | D100: Fjernvarme | E100: 00:00:00
A101: 19 | B101: Væskekoblede batterier ( -1995 ) | C101: 0.4 | D101: Naturgas | E101: 01:00:00
A102: 20 | B102: Heatpipes ( -1995 ) | C102: 0.45 | D102: Olie | E102: 02:00:00
A103: 21 | B103: Væskekoblede batterier ( 1995-2006 ) | C103: 0.5 | D103: Pillefyr | E103: 03:00:00
A104: 22 | B104: Krydsvarmeveksler ( -1995 ) | C104: 0.55 | D104: El | E104: 04:00:00
A105: 23 | B105: Heatpipes ( 1995-2006 ) | C105: 0.55 | E105: 05:00:00
B106: Krydsvarmeveksler ( 1995-2006 ) | C106: 0.6 | E106: 06:00:00
B107: Roterende veksler ( -1995 ) | C107: 0.65 | E107: 07:00:00
B108: Krydsvarmeveksler ( 2007- ) | C108: 0.65 | E108: 08:00:00
B109: Roterende veksler ( 1995-2006 ) | C109: 0.75 | E109: 09:00:00
B110: Roterende veksler ( 2007- ) | C110: 0.8 | E110: 10:00:00
B111: Modstrømsveksler ( 1995-2006 ) | C111: 0.85 | E111: 11:00:00
B112: Modstrømsveksler ( 2007- ) | C112: 0.88 | E112: 12:00:00
E113: 13:00:00
E114: 14:00:00
E115: 15:00:00
E116: 16:00:00
E117: 17:00:00
E118: 18:00:00
E119: 19:00:00
E120: 20:00:00
E121: 21:00:00
E122: 22:00:00
E123: 23:00:00
E124: 1

Sheet Ventilation remtræk (hidden)
I2: 1 | J2: 2 | K2: 3 | L2: 4 | M2: 5 | N2: 6 | O2: 7
I3: Vælg | J3: Typiske virkningsgrader [%]
A4: Motorstørrelse | B4: 10 | I4: Remtræk med én almindelig kilerem | J4: 0.93 | K4: 0.94 | L4: 0.95 | M4: 0.96 | N4: 0.97 | O4: 0.98
A5: I drift fra kl.: | B5: 01:00:00 | I5: Remtræk med flere almindelig kilerem | J5: 0.9 | K5: 0.91 | L5: 0.92 | M5: 0.93
A6: I drift til kl.: | B6: 20:00:00 | I6: Remtræk med formfortandet kilerem | J6: 0.96 | K6: 0.97 | L6: 0.98
A7: Timer pr. dag | B7: =IFERROR((B6-B5)*24,"") -> 19 | I7: Poly-V rem | J7: 0.97 | K7: 0.98 | L7: 0.99
A8: Dage pr. år | B8: 200 | I8: Fladremstræk | J8: 0.97 | K8: 0.98 | L8: 0.99
A9: Remtræk gl. | B9: Remtræk med én almindelig kilerem | I9: Tandremstræk | J9: 0.97 | K9: 0.98 | L9: 0.99
A10: Typisk virkningsgrad | B10: 0.93 | I10: Direkte trukket | J10: 1
A11: Remtræk ny. | B11: Direkte trukket
A12: Typisk virkningsgrad | B12: 1
A13: Energibesparelse | B13: =IFERROR(IF(B4*B7*B8*(B12-B10)<0,"",B4*B7*B8*(B12-B10)),"") -> 2660 | H13: Gl | I13: Vælg | J13: =IFERROR(IF(VLOOKUP($B$9,$I$4:$O$10,J2,FALSE)=0,"",VLOOKUP($B$9,$I$4:$O$10,J2,FALSE)),"") -> 0.93 | K13: =IFERROR(IF(VLOOKUP($B$9,$I$4:$O$10,K2,FALSE)=0,"",VLOOKUP($B$9,$I$4:$O$10,K2,FALSE)),"") -> 0.94 | L13: 0.95 | M13: 0.96 | N13: 0.97 | O13: 0.98
A14: Energikilde | B14: El | H14: Ny | I14: Vælg | J14: =IFERROR(IF(VLOOKUP($B$11,$I$4:$O$10,J2,FALSE)=0,"",VLOOKUP($B$11,$I$4:$O$10,J2,FALSE)),"") -> 1 | K14: =IFERROR(IF(VLOOKUP($B$11,$I$4:$O$10,K2,FALSE)=0,"",VLOOKUP($B$11,$I$4:$O$10,K2,FALSE)),"") -> 
A15: ηenergikilde | B15: 1
A16: Pris pr. kWh | B16: =IFERROR(VLOOKUP(B14,Info!A14:B22,2,FALSE),"") -> 1.6
A17: Økonomisk besparelse | B17: =IFERROR(B13*B16,"") -> 4256
A18: Investering | B18: 5000
A19: Tilbagebetalingstid | B19: =IFERROR(B18/B17,"") -> 1.17481203

Sheet Belysning
A1: Belysning | F1: Anvendelse | G1: Lyskilde | H1: Inst. effekt [W/m2] | I1: Mulig udskiftning | J1: Inst. effekt [W/m2] | K1: Årlig besparelse [kWh/m2/år]
A2: Område | B2: Kontor | C2: Mødelokale | D2: Rest | F2: Gang u. bev. melder | G2: gl. 2 rørs armatur | H2: 9 | I2: LED panel | J2: 3.6 | K2: 12.636
A3: Areal | B3: =IFERROR(Info!$B$11*B4,"") -> 800 | C3: =IFERROR(Info!$B$11*C4,"") -> 700 | D3: =IFERROR(Info!$B$11*D4,"") -> 500 | F3: Gang m. bev. melder | G3: gl. 2 rørs armatur | H3: 7 | I3: LED panel | J3: 2.8 | K3: 9.828
A4: %-vis fordeling af områder | B4: 0.4 | C4: 0.35 | D4: =1-SUM(B4:C4) -> 0.25 | F4: Kontor u. bev. melder | G4: gl. 2 rørs armatur | H4: 18 | I4: LED panel | J4: 4.95 | K4: 30.537
A5: I drift fra kl.: | B5: 07:00:00 | C5: 08:00:00 | D5: 07:00:00 | F5: Kontor m. bev. melder | G5: gl. 2 rørs armatur | H5: 14 | I5: LED panel | J5: 3.85 | K5: 23.751
A6: I drift til kl.: | B6: 17:00:00 | C6: 17:00:00 | D6: 17:00:00 | F6: Reception | G6: Lavvolt halogen | H6: 20 | I6: LED panel | J6: 5.5 | K6: 33.93
A7: Timer pr. dag | B7: =IFERROR((B6-B5)*24,"") -> 10 | C7: =IFERROR((C6-C5)*24,"") -> 9 | D7: 10 | F7: Undervisning u. bev. melder | G7: gl. 2 rørs armatur | H7: 18 | I7: LED panel | J7: 4.95 | K7: 30.537
A8: Dage pr. år | B8: 220 | C8: 220 | D8: 220 | F8: Undervisning m. bev. melder | G8: gl. 2 rørs armatur | H8: 14 | I8: LED panel | J8: 3.85 | K8: 23.751
A9: Benyttelsesfaktor | B9: 0.8 | C9: 0.3 | D9: 0.5
A10: Nuværende belysning (W/m²) | B10: 20 | C10: 15 | D10: 10
A11: Fremtidig belysning - LED (W/m²) | B11: =IFERROR(IF(B12>0,"",VLOOKUP(B$2,$C$26:$D$28,2,FALSE)),"") -> 5 | C11: =IFERROR(IF(C12>0,"",VLOOKUP(C$2,$C$26:$D$28,2,FALSE)),"") -> 5 | D11: =IFERROR(IF(D12>0,"",VLOOKUP(D$2,$C$26:$D$28,2,FALSE)),"") -> 4
A12: - Anden fremtidig belysningseffekt
A13: Energibesparelse | B13: =IFERROR(IF(B3*B7*B8*B9*(B10-(IF(B12>0,B12,B11)))/1000<0,"",B3*B7*B8*B9*(B10-(IF(B12>0,B12,B11)))/1000),"") -> 21120 | C13: =IFERROR(IF(C3*C7*C8*C9*(C10-(IF(C12>0,C12,C11)))/1000<0,"",C3*C7*C8*C9*(C10-(IF(C12>0,C12,C11)))/1000),"") -> 4158 | D13: 3300
A14: Energikilde | B14: El | C14: El | D14: El
A15: Pris pr. kWh | B15: =IFERROR(VLOOKUP(B14,Info!$A$18:$B$22,2,FALSE),"") -> 1.6 | C15: =IFERROR(VLOOKUP(C14,Info!$A$18:$B$22,2,FALSE),"") -> 1.6 | D15: =IFERROR(VLOOKUP(D14,Info!$A$18:$B$22,2,FALSE),"") -> 1.6
A16: Økonomisk besparelse | B16: =IFERROR(IF(B13="","",B15*B13),"") -> 33792 | C16: =IFERROR(IF(C13="","",C15*C13),"") -> 6652.8 | D16: =IFERROR(IF(D13="","",D15*D13),"") -> 5280
A17: Investering (anslået) | B17: =IFERROR(IF(B18>0,"",250*B3),"") -> 200000 | C17: =IFERROR(IF(C18>0,"",250*C3),"") -> 175000 | D17: 125000
A18: Investering
A19: Vedligeholdelsesbesparelse | B19: 5000 | C19: 3000 | D19: 2000
A20: Tilbagebetalingstid | B20: =IFERROR(IF(B18>0,B18,B17)/(B19+B16),"") -> 5.155702207 | C20: =IFERROR(IF(C18>0,C18,C17)/(C19+C16),"") -> 18.12945467 | D20: =IFERROR(IF(D18>0,D18,D17)/(D19+D16),"") -> 17.17032967
C25: Vælg | D25: LED [W]
C26: Kontor | D26: 5
C27: Mødelokale | D27: 5
C28: Rest | D28: 4

Sheet Solceller
F1: Skemaet viser forventet elproduktion fra solceller i forhold til den optimale placering, som er en 35 graders hældning på syd-vendt tag. Tallet 100 svarer derfor til placeringen på taget for størst mulig elproduktion fra solcellerne. Tallene er angivet i procent.
A2: Solceller
A3: Årlig energiforbrug [kWh] | B3: 225000
A4: Retning | B4: Vest | F4: Hældning på solceller | H4: 0 | I4: 5 | J4: 10 | K4: 15 | L4: 20 | M4: 25 | N4: 30 | O4: 35 | P4: 40 | Q4: 45 | R4: 60 | S4: 70 | T4: 90
A5: - retning i forhold til syd (0°) | B5: 90 | E5: =IF(AND($B$4=F5,$B$5=G5),1,0) -> 1 | F5: VEST | G5: 90 | H5: 86 | I5: 86 | J5: 86 | K5: 85 | L5: 84 | M5: 83 | N5: 81 | O5: 80 | P5: 78 | Q5: 77 | R5: 70 | S5: 66 | T5: 44
A6: Hældning | B6: 30 | E6: =IF(AND($B$4=F6,$B$5=G6),1,0) -> 0 | F6: SYD VEST | G6: 60 | H6: 86 | I6: 88 | J6: 89 | K6: 90 | L6: 91 | M6: 91 | N6: 91 | O6: 90 | P6: 89 | Q6: 88 | R6: 83 | S6: 78 | T6: 64
A7: Dækningsgrad af solceller [%] | B7: 0.3 | E7: =IF(AND($B$4=F7,$B$5=G7),1,0) -> 0 | F7: SYD VEST | G7: 45 | H7: 86 | I7: 89 | J7: 91 | K7: 92 | L7: 93 | M7: 94 | N7: 94 | O7: 94 | P7: 94 | Q7: 93 | R7: 88 | S7: 82 | T7: 68
A8: Areal af solcelleanlæg | B8: =IFERROR(B3/(V22*V23*1739*((VLOOKUP(1,$E$5:$T$15,MATCH($B$6,$H$4:$T$4,0)+3,FALSE))/100))*B7,"") -> 348.004798 | E8: 0 | F8: SYD VEST | G8: 30 | H8: 86 | I8: 89 | J8: 92 | K8: 94 | L8: 95 | M8: 97 | N8: 98 | O8: 97 | P8: 97 | Q8: 96 | R8: 93 | S8: 86 | T8: 70
A9: Energikilde | B9: El | E9: 0 | F9: SYD | G9: 15 | H9: 86 | I9: 90 | J9: 93 | K9: 95 | L9: 97 | M9: 98 | N9: 99 | O9: 99 | P9: 99 | Q9: 99 | R9: 94 | S9: 88 | T9: 72
A10: Pris pr. kWh | B10: =IFERROR(VLOOKUP(B9,Info!$A$18:$B$22,2,FALSE),"") -> 1.6 | E10: 0 | F10: SYD | G10: 0 | H10: 86 | I10: 90 | J10: 93 | K10: 95 | L10: 97 | M10: 99 | N10: 100 | O10: 100 | P10: 100 | Q10: 99 | R10: 94 | S10: 88 | T10: 72
A11: Økonomisk besparelse | B11: =IFERROR(B3*B7*B10,"") -> 108000 | E11: 0 | F11: SYD | G11: 15 | H11: 86 | I11: 90 | J11: 93 | K11: 95 | L11: 97 | M11: 98 | N11: 99 | O11: 99 | P11: 99 | Q11: 99 | R11: 94 | S11: 87 | T11: 72
A12: Investering (anslået) | B12: =IFERROR(IF(B13>0,"",B8*V24),"") -> 1044014.394 | E12: 0 | F12: SYD ØST | G12: 30 | H12: 86 | I12: 89 | J12: 92 | K12: 94 | L12: 95 | M12: 95 | N12: 97 | O12: 97 | P12: 97 | Q12: 96 | R12: 92 | S12: 86 | T12: 70
A13: Investering | E13: 0 | F13: SYD ØST | G13: 45 | H13: 86 | I13: 89 | J13: 91 | K13: 92 | L13: 93 | M13: 94 | N13: 94 | O13: 94 | P13: 94 | Q13: 93 | R13: 88 | S13: 88 | T13: 68
A14: Tilbagebetalingstid | B14: =IFERROR(IF(B13>0,B13/B11,B12/B11),"") -> 9.666799945 | E14: 0 | F14: SYD ØST | G14: 60 | H14: 86 | I14: 88 | J14: 89 | K14: 90 | L14: 91 | M14: 91 | N14: 91 | O14: 90 | P14: 89 | Q14: 88 | R14: 83 | S14: 78 | T14: 64
E15: 0 | F15: ØST | G15: 90 | H15: 86 | I15: 86 | J15: 86 | K15: 85 | L15: 84 | M15: 83 | N15: 81 | O15: 80 | P15: 78 | Q15: 77 | R15: 70 | S15: 66 | T15: 44
F21: Hældning | G21: Retning | P21: Dækningsgrad | V21: Monokrystallinske silicium
F22: Vælg | G22: Vælg | H22: Vælg | I22: Vest | J22: Syd Vest | K22: Syd | L22: Syd Øst | M22: Øst | P22: Vælg | U22: Peak Power (RS) | V22: 0.162
F23: 0 | G23: Vest | H23: =IFERROR(HLOOKUP($B$4,$I$22:$M$25,2,FALSE),"") -> 90 | I23: 90 | J23: 60 | K23: 0 | L23: 30 | M23: 90 | P23: 0.05 | U23: η | V23: 0.85
F24: 5 | G24: Syd Vest | H24: =IFERROR(IF(HLOOKUP($B$4,$I$22:$M$25,3,FALSE)=0,"",HLOOKUP($B$4,$I$22:$M$25,3,FALSE)),"") ->  | J24: 45 | K24: 15 | L24: 45 | P24: 0.1 | U24: Pris pr. m² | V24: 3000
F25: 10 | G25: Syd | H25: =IFERROR(IF(HLOOKUP($B$4,$I$22:$M$25,4,FALSE)=0,"",HLOOKUP($B$4,$I$22:$M$25,4,FALSE)),"") ->  | J25: 30 | L25: 60 | P25: 0.15
F26: 15 | G26: Syd Øst | P26: 0.2
F27: 20 | G27: Øst | P27: 0.25
F28: 25 | P28: 0.3
F29: 30 | P29: 0.35
F30: 35 | P30: 0.4
F31: 40 | P31: 0.45
F32: 45 | P32: 0.5
F33: 60 | P33: 0.55
F34: 70 | P34: 0.6
F35: 90 | P35: 0.65
P36: 0.7
P37: 0.75
P38: 0.8
P39: 0.85
P40: 0.9
P41: 0.95
P42: 1
F55: Hældning på solceller | G55: VEST | H55: SYD VEST | I55: SYD VEST | J55: SYD VEST | K55: SYD | L55: SYD | M55: SYD | N55: SYD ØST | O55: SYD ØST | P55: SYD ØST | Q55: ØST
G56: 90 | H56: 60 | I56: 45 | J56: 30 | K56: 15 | L56: 0 | M56: 15 | N56: 30 | O56: 45 | P56: 60 | Q56: 90
F57: 0 | G57: 86 | H57: 86 | I57: 86 | J57: 86 | K57: 86 | L57: 86 | M57: 86 | N57: 86 | O57: 86 | P57: 86 | Q57: 86
F58: 5 | G58: 86 | H58: 88 | I58: 89 | J58: 89 | K58: 90 | L58: 90 | M58: 90 | N58: 89 | O58: 89 | P58: 88 | Q58: 86
F59: 10 | G59: 86 | H59: 89 | I59: 91 | J59: 92 | K59: 93 | L59: 93 | M59: 93 | N59: 92 | O59: 91 | P59: 89 | Q59: 86
F60: 15 | G60: 85 | H60: 90 | I60: 92 | J60: 94 | K60: 95 | L60: 95 | M60: 95 | N60: 94 | O60: 92 | P60: 90 | Q60: 85
F61: 20 | G61: 84 | H61: 91 | I61: 93 | J61: 95 | K61: 97 | L61: 97 | M61: 97 | N61: 95 | O61: 93 | P61: 91 | Q61: 84
F62: 25 | G62: 83 | H62: 91 | I62: 94 | J62: 97 | K62: 98 | L62: 99 | M62: 98 | N62: 95 | O62: 94 | P62: 91 | Q62: 83
F63: 30 | G63: 81 | H63: 91 | I63: 94 | J63: 98 | K63: 99 | L63: 100 | M63: 99 | N63: 97 | O63: 94 | P63: 91 | Q63: 81
F64: 35 | G64: 80 | H64: 90 | I64: 94 | J64: 97 | K64: 99 | L64: 100 | M64: 99 | N64: 97 | O64: 94 | P64: 90 | Q64: 80
F65: 40 | G65: 78 | H65: 89 | I65: 94 | J65: 97 | K65: 99 | L65: 100 | M65: 99 | N65: 97 | O65: 94 | P65: 89 | Q65: 78
F66: 45 | G66: 77 | H66: 88 | I66: 93 | J66: 96 | K66: 99 | L66: 99 | M66: 99 | N66: 96 | O66: 93 | P66: 88 | Q66: 77
F67: 60 | G67: 70 | H67: 83 | I67: 88 | J67: 93 | K67: 94 | L67: 94 | M67: 94 | N67: 92 | O67: 88 | P67: 83 | Q67: 70
F68: 70 | G68: 66 | H68: 78 | I68: 82 | J68: 86 | K68: 88 | L68: 88 | M68: 87 | N68: 86 | O68: 88 | P68: 78 | Q68: 66
F69: 90 | G69: 44 | H69: 64 | I69: 68 | J69: 70 | K69: 72 | L69: 72 | M69: 72 | N69: 70 | O69: 68 | P69: 64 | Q69: 44

Sheet Køl
A1: Køl
A2: Effektforbrug [kWh/år]
A3: - COP-værdi nuværende anlæg
A4: - COP-værdi fremtidigt anlæg
A5: Energibesparelse | B5: =IFERROR((B2/B3)-(B2/B4),"") -> 
A6: Energikilde | B6: El
A7: Pris pr. kWh | B7: =IFERROR(VLOOKUP(B6,Info!$A$18:$B$22,2,FALSE),"") -> 1.6
A8: Økonomisk besparelse | B8: =IFERROR(IF(B5="","",B7*B5),"") -> 
A9: Investering
A10: Vedligeholdelsesbesparelse
A11: Tilbagebetalingstid | B11: =IFERROR(B9/(B10+B8),"") -> 

Sheet Tabel for nødvendig energiforb. (hidden)
A1: Driftstid fra 0,00 til | B1: Årligt energiforbrug kWh pr.m3 friskluft pr. time opvarmet til | H1: Procent-fordeling | K1: Nuværende | O1: Fremtidig
B2: 18 | C2: 19 | D2: 20 | E2: 21 | F2: 22 | G2: 23 | K2: Vent. | L2: Infiltration | O2: Vent. | P2: Infiltration
A3: 1 | B3: 1.5 | C3: 1.7 | D3: 1.8 | E3: 1.9 | F3: 2.1 | G3: 2.2 | H3: 4.9 | J3: ="Energiforbrug til opvarming af udeluft til " & 'Luftmængde + Veksler'!#REF! & "C" & " ved åbning." ->  | K3: =IFERROR((VLOOKUP(('Luftmængde + Veksler'!#REF!*24),$A$3:$G$26,((MATCH('Luftmængde + Veksler'!#REF!,$B$2:$G$2,0))+1))),0) -> 0 | L3: =IFERROR((VLOOKUP(('Luftmængde + Veksler'!#REF!*24),$A$3:$G$26,((MATCH('Luftmængde + Veksler'!#REF!,$B$2:$G$2,0))+1))),0) -> 0 | M3: =IFERROR((VLOOKUP(('Luftmængde + Veksler'!#REF!*24),$A$3:$G$26,((MATCH('Luftmængde + Veksler'!#REF!,$B$2:$G$2,0))+1))),0) -> 0 | O3: =IFERROR((VLOOKUP(('Luftmængde + Veksler'!#REF!*24),$A$3:$G$26,((MATCH('Luftmængde + Veksler'!#REF!,$B$2:$G$2,0))+1))),0) -> 0 | P3: =IFERROR((VLOOKUP(('Luftmængde + Veksler'!#REF!*24),$A$3:$G$26,((MATCH('Luftmængde + Veksler'!#REF!,$B$2:$G$2,0))+1))),0) -> 0 | Q3: =IFERROR((VLOOKUP(('Luftmængde + Veksler'!#REF!*24),$A$3:$G$26,((MATCH('Luftmængde + Veksler'!#REF!,$B$2:$G$2,0))+1))),0) -> 0 | R3: kWh
A4: 2 | B4: 3.1 | C4: 3.4 | D4: 3.7 | E4: 4 | F4: 4.3 | G4: 4.6 | H4: 10
A5: 3 | B5: 4.7 | C5: 5.1 | D5: 5.5 | E5: 6 | F5: 6.4 | G5: 6.9 | H5: 15.1 | J5: ="Energiforbrug til opvarming af udeluft til " & 'Luftmængde + Veksler'!#REF! & "C" & " ved lukning." ->  | K5: =IFERROR(VLOOKUP(('Luftmængde + Veksler'!#REF!*24),$A$3:$G$26,((MATCH('Luftmængde + Veksler'!#REF!,$B$2:$G$2,0))+1)),0) -> 0 | L5: 0 | M5: =IFERROR(VLOOKUP(('Luftmængde + Veksler'!#REF!*24),$A$3:$G$26,((MATCH('Luftmængde + Veksler'!#REF!,$B$2:$G$2,0))+1)),0) -> 0 | O5: =IFERROR(VLOOKUP(('Luftmængde + Veksler'!#REF!*24),$A$3:$G$26,((MATCH('Luftmængde + Veksler'!#REF!,$B$2:$G$2,0))+1)),0) -> 0 | P5: =IFERROR(VLOOKUP(('Luftmængde + Veksler'!#REF!*24),$A$3:$G$26,((MATCH('Luftmængde + Veksler'!#REF!,$B$2:$G$2,0))+1)),0) -> 0 | Q5: =IFERROR(VLOOKUP(('Luftmængde + Veksler'!#REF!*24),$A$3:$G$26,((MATCH('Luftmængde + Veksler'!#REF!,$B$2:$G$2,0))+1)),0) -> 0 | R5: kWh
A6: 4 | B6: 6.3 | C6: 6.9 | D6: 7.5 | E6: 8.1 | F6: 8.7 | G6: 9.3 | H6: 20.4
A7: 5 | B7: 8 | C7: 8.7 | D7: 9.4 | E7: 10.1 | F7: 10.9 | G7: 11.6 | H7: 25.6
A8: 6 | B8: 9.6 | C8: 10.5 | D8: 11.3 | E8: 12.2 | F8: 13.1 | G8: 14 | H8: 30.85
A9: 7 | B9: 11.2 | C9: 12.2 | D9: 13.2 | E9: 14.3 | F9: 15.3 | G9: 16.4 | H9: 36.05
A10: 8 | B10: 12.6 | C10: 13.8 | D10: 14.9 | E10: 16.1 | F10: 17.3 | G10: 18.5 | H10: 40.6
A11: 9 | B11: 14.1 | C11: 15.4 | D11: 16.7 | E11: 18 | F11: 19.4 | G11: 20.7 | H11: 45.5 | J11: Dybe energirenoveringer
A12: 10 | B12: 15.4 | C12: 16.8 | D12: 18.2 | E12: 19.7 | F12: 21.1 | G12: 22.6 | H12: 49.65 | K12: Vent.
A13: 11 | B13: 16.6 | C13: 18.1 | D13: 19.6 | E13: 21.1 | F13: 22.7 | G13: 24.3 | H13: 53.35 | J13: ="Energiforbrug til opvarming af udeluft til " & 'Luftmængde + Veksler'!B8 & " °C" & " ved åbning." -> Energiforbrug til opvarming af udeluft til Vælg °C ved åbning. | K13: =IFERROR((VLOOKUP(('Luftmængde + Veksler'!B4*24),$A$3:$G$26,((MATCH('Luftmængde + Veksler'!B8,$B$2:$G$2,0))+1))),0) -> 0
A14: 12 | B14: 17.5 | C14: 19.1 | D14: 20.7 | E14: 22.3 | F14: 24 | G14: 25.6 | H14: 56.36
A15: 13 | B15: 18.4 | C15: 20.1 | D15: 21.7 | E15: 23.5 | F15: 25.2 | G15: 27 | H15: 59.25 | J15: ="Energiforbrug til opvarming af udeluft til " & 'Luftmængde + Veksler'!B8 & " °C" & " ved lukning." -> Energiforbrug til opvarming af udeluft til Vælg °C ved lukning. | K15: =IFERROR(VLOOKUP(('Luftmængde + Veksler'!B5*24),$A$3:$G$26,((MATCH('Luftmængde + Veksler'!B8,$B$2:$G$2,0))+1)),0) -> 0
A16: 14 | B16: 19.3 | C16: 21 | D16: 22.8 | E16: 24.6 | F16: 26.4 | G16: 28.3 | H16: 62.1
A17: 15 | B17: 20.2 | C17: 22 | D17: 23.8 | E17: 25.7 | F17: 27.7 | G17: 29.6 | H17: 65
A18: 16 | B18: 21.1 | C18: 23 | D18: 24.9 | E18: 26.9 | F18: 28.9 | G18: 30.9 | H18: 67.85
A19: 17 | B19: 22.1 | C19: 24.1 | D19: 26.1 | E19: 28.1 | F19: 30.2 | G19: 32.3 | H19: 71.05
A20: 18 | B20: 23 | C20: 25.1 | D20: 27.2 | E20: 29.4 | F20: 31.6 | G20: 33.7 | H20: 74.15
A21: 19 | B21: 24.2 | C21: 26.4 | D21: 28.5 | E21: 30.8 | F21: 33.1 | G21: 35.4 | H21: 77.85
A22: 20 | B22: 25.4 | C22: 27.6 | D22: 29.9 | E22: 32.3 | F22: 34.7 | G22: 37.1 | H22: 81.6
A23: 21 | B23: 26.7 | C23: 29.1 | D23: 31.5 | E23: 34.1 | F23: 36.6 | G23: 39.1 | H23: 86
A24: 22 | B24: 28 | C24: 30.5 | D24: 33.1 | E24: 35.7 | F24: 38.4 | G24: 41 | H24: 90.15
A25: 23 | B25: 29.5 | C25: 32.1 | D25: 34.8 | E25: 37.6 | F25: 40.4 | G25: 43.2 | H25: 94.85
A26: 24 | B26: 31.1 | C26: 33.9 | D26: 36.7 | E26: 39.6 | F26: 42.6 | G26: 45.5 | H26: 100
